{"text_format":"1","workbook":"xlsx","n_sheets":5,"sheets":["Materiales Cuadra","Computo","Presupuesto","Análisis de Precios","Materiales"],"not_rendered":{"charts":0,"images":1,"macros":0,"external_links":0,"defined_names":0,"comments":0,"pivot_tables":0},"unopened":[],"bounds":{"document_bytes":16777216,"sheet_cells":100000,"rows_first":2000,"rows_last":500,"rows_between":2000,"halvings":0,"cell_chars":16384,"cell_head_chars":4096},"cells_cut":0,"cells_raw":0,"read":"whole","date_system":"1900"}

{"sheet":"Materiales Cuadra","index":0,"n_rows":325,"n_cols":3,"rows_kept":325,"cut":false,"hidden":false,"merged":[]}
["Listado de Precios de Materiales"]
[]
["1-Elementos de Seguridad e Higiene y Herramnientas"]
["1.1 Seguridad e Higiene"]
["1.2 Herramientas"]
["2-Perforación estudio Suelo"]
["3-Ensayo de Hormigón"]
["4-Alquiler de equipos y de movimiento de tierra"]
["5-Aceros"]
["5.1 Hierros por barra de 12m"]
["       Barra torcionada x 4.2mm"]
["       Barra torcionada x 6mm"]
["       Barra torcionada x 8mm"]
["       Barra torcionada x 10mm"]
["       Barra torcionada x 12mm"]
["       Barra torcionada x 16mm"]
["       Barra torcionada x 20mm"]
["       Barra torcionada x 25mm"]
["       Barra lisa x 6mm"]
["       Barra lisa x 8mm"]
["       Barra lisa x 10mm"]
["       Barra lisa x 12mm"]
["       Barra lisa x 14mm"]
["       Barra lisa x 16mm"]
["5.2 Clavos y Alambres"]
["5.3 Tejidos para cercos 10m - un -"]
["5.4 Planchuelas preforadas x 6m"]
["5.5 Mallas electrosoldadas 6 x 2,15"]
["5.6 Caños estructurales cuadrados x 6 ml"]
["5.7 Caños estructurales rectangulares x 6 ml"]
["5.8 Caños estructurales redondos x 6 ml"]
["5.9 Planchuelas"]
["5.10 Hierros T Ángulos y Prefiles"]
["5.11 Zinguería y Chapas - ml -"]
["         Canaleta chapa galv. Nro 27 des. 0,33m"]
["         Canaleta chapa galv. Nro 27 des. 0,40m"]
["         Canaleta chapa galv. Nro 27 des. 0,50m"]
["         Canaleta chapa galv. Nro 24 des. 0,33m"]
["         Canaleta chapa galv. Nro 24 des. 0,40m"]
["         Canaleta chapa galv. Nro 24 des. 0,50m"]
["         Cenefa chapa galv. Nro 30 des. 0,25m"]
["         Cumbreras chapa nro 30 des 0,30m"]
["         Sombrerete diám. 75mm ch nro 30 - un -"]
["         Sombrerete diám. 110 - un -"]
["         Embudo redondo diám. 100mm - un -"]
["         Babetas chapa galv. Nro 27 des. 0,25m"]
["         Babetas chapa galv. Nro 30 des. 0,25m"]
["5.12 Chapas lisas Galvanizadas - ml -"]
["         Nro 2,5  1x2m"]
["         Nro 2      1x2m"]
["         Nro 1,6  1x2m"]
["         Nro 0,9  1x2m"]
["         Nro 0,7  1x2m"]
["         Nro 0,3  1x2m"]
["5.13 Metal desplegado 1x3"]
["5.14 Chapas lisas gruesas laminado en caliente - un -"]
["5.15 Chapas Negra"]
["5.15.1 Laminado en frio"]
["5.15.2 Laminado en caliente"]
["5.15.3 Estampadas"]
["5.15.4 Perforadas"]
["6-Aridos"]
["           Arena gruesa - 6 m3"]
["           Polvo de cantera con escombros para contrapiso - 5 m3"]
["           Isocret bolsa 170 lts."]
["           Piedra partida para enconfrado - 5 m3"]
["          Bolsa de Arena"]
["           m3 de Arena"]
["           Tierra - 6 m3"]
["           Ripio Sucio - 6 m3"]
["          Leca 0 a 3mm p/contrapisos - m3"]
["          Leca 3 a 10mm p/columnas y vigas - m3"]
["          Leca 10 a 20mm p/losas y bases - m3"]
["           Bolsa de Piedra - 6 m3"]
["           m3 de piedra - 6 m3"]
["7-Cales y Cementos"]
["           Cal tipo Andina - 20kg"]
["           Cal viva tipo FGH - 25kg"]
["           Cemento Portland - 50kg"]
["           Cemento de Albañilería - 40kg"]
["           Cemento Blanco - 25kg"]
["8-Hormigón Elaborado"]
["           resistencia H17 (170 kg cemento)"]
["           resistencia H21 (170 kg cemento)"]
["           resistencia H25 (170 kg cemento)"]
["           resistencia H35 (170 kg cemento)"]
["           Servicio de bombeo hasta 15m"]
["9-Aditivo para Hormigones"]
["           Sika 3 acelerante de frague p/mortero - 20 kg"]
["           Sika 3 acelerante de frague p/mortero sin cloruro - 25 kg"]
["           Sika Separol maderaDesmoldante p/encofrados de madera - 200 lts"]
["           Sika Desmoldante p/encofrados metalicos - 200 lts"]
["           Sika grout 212Mortero p/anclaje y nivelación estructuras - 25kg"]
["           Sika dur 32gel Adhesivo epoxi p/unir hormigon viejo a nuevo - 5kg"]
["10-Aislaciones"]
["10.1 Aislaciones hidrófugas e Impermeabilizantes"]
["           Sika 1 Hidrof. Tipo Cerecita x 4kg",null,{"$f":"B97/4","v":0}]
["           Sika 1 Hidrof. Tipo Cerecita x 10kg",null,{"$f":"B98/10","v":0}]
["           Sika 1 Hidrof. Tipo Cerecita x 20kg",null,{"$f":"B99/20","v":0}]
["           Sika 1 Hidrof. - 5kg",null,{"$f":"B100/5","v":0}]
["           Sika 1 Hidrof. - 200kg",null,{"$f":"B101/200","v":0}]
["           Hidrófugo Promedio /kg"]
["           Sika monotop 107 impermeabilizante cementicio listo p/usar - 25kg"]
["           Protección hidrorrepelente para fachadas tipo Sika - 20 lts"]
["           Sika Guard 70 Impermeabilizante incoloro para ladrillos - 20lts"]
["           Sika fill tapagot Sellador incoloro p/goteras y filtraciones - 5lts"]
["           Revest. Fibrado impermeable p/techos tipo Sika - 20kg"]
["           Techado asfaltico Nro 2 - 20 m2"]
["           Fieltro Nro 15 con aluminio - 10 m2"]
["           Emulsión asfáltica x 4lts Tipo Megaflex"]
["           Pintura Asfáltica - 18lts"]
["           Membrana asfáltica 4mm - 10 m2"]
["10.2 Aislaciones Térmicas e Hirdófugas/b tejas y chapas"]
["           alumair doble 30mm - burbuja diám. 30 - 30m2"]
["           alumair simple 30mm - burbuja diám. 30 - 30m2"]
["           alumair doble 10mm - burbuja diám. 10 - 40m2"]
["           alumair simple 10mm - burbuja diám. 10 - 40m2"]
["           alumair doble 30mm - burbuja diám. 30 - 60m2 - L. fuego"]
["           alumair simple 30mm - burbuja diám. 30 - 60m2 - L. fuego"]
["           air tech doble 10mm - burbuja diám. 10 - 30m2"]
["           air tech simple 10mm - burbuja diám. 10 - 30m2"]
["           isolant TB2 - 2mm"]
["           isolant TB5 - 5mm"]
["           isolant TBA15 - 15mm"]
["           isolant TBA5 - 5mm"]
["           isolant TBA10 - 10mm"]
["           isolant Doble A - 5mm"]
["           isolant Doble A - 10mm"]
["           isolant Doble A - 15mm"]
["           cinta adhesiva metalizada"]
["           cinta aluminizada CTBA 7cm"]
["10.3 Aislaciones Térmicas e Hirdófugas/b tejas y chapas"]
["           lana de vidrio hidrorrepelente p/cubiertas y techos - un"]
["           revestida con foil aluminio (18x1,2)m x 50mm"]
["           revestida con foil aluminio hilos de vidrio-papel kraft(12x1,2)m x 50mm"]
["           revestida con papel kraft platificado (18x1,2)m x 50mm"]
["           Espuma de poliuretano 20mm x m2"]
[]
[]
[]
[]
[]
[]
[]
[]
["10.4 Aislación Ignífuga"]
[]
["11-Juntas de dilatación"]
["12-Mampostería"]
["12.1 Bloques de cemento - un -"]
["         Comunes - millar"]
["         Comunes vista - millar"]
["         Prensados vista - un"]
["         tejuelas 0,11cm x 0,225cm x 0,019mm refractaria"]
["         De vidrio 0,19 x 0,019 x 0,8 transp. - un"]
["12.2 Ladrillos - un -"]
["         0,8x18x25 6 tubos"]
["         12x18x25 6 tubos"]
["         18x18x25 9 tubos"]
["         18x18x25 16 tubos portante"]
["         18x18x25 16 U encadenado"]
["         12x18x25 9 tubos"]
["         18x18x33 autoportante columna"]
["12.3 Cerámicas - un -"]
["         Placa de revestimiento 50x25x5 cm"]
["         Tabiques interiores 50x25x7,5 cm"]
["         Tabiques interiores 50x25x10 cm"]
["         Muros portantes ext. 50x25x15"]
["         Muros portantes ext. 50x25x20"]
["         Dintel 120x25x10"]
["         Dintel 120x25x20"]
["         Dintel 200x25x20"]
["         Bloques U 50x25x15"]
["         Bloques U 50x25x20"]
["         Escalón 120x25x17,5"]
["         Mortero adhesivo retak - 30kg"]
["         Mortero fijador de barras retak - 30kg"]
["         Reboque fibrado retak - 30kg"]
["12.4 Bloques celular curado en autoclave H.C.C.A. Sist. Retak - un -"]
["         para cielorrasos junta tomada - 8mm - 1,20 x 2,40"]
["         para paredes borde rebajado - 10mm - 1,20 x 2,40"]
["         para entrepisos borde recto - 15mm - 1,20 x 2,40"]
["         para fachadas biseladas 45grados - 10mm - 1,20 x 2,40"]
["15.5 Placas cementicias - un -"]
["         para cielorrasos junta tomada - 8mm - 1,20 x 2,40"]
["         para paredes borde rebajado - 10mm - 1,20 x 2,40"]
["         para entrepisos borde recto - 15mm - 1,20 x 2,40"]
["         para fachadas biseladas 45grados - 10mm - 1,20 x 2,40"]
["13-Prefabricados de hormigón"]
["13.1 Viguetones Pretensados - tipo Vipret - un -"]
["13.2 Losas pretensadas ultralivianadas y aislantes - m2 -"]
["13.3 premoldeados"]
["13.4 tensolite"]
["14-Cielorrasos y tabiques"]
["14.1 Placas de yeso tipl knauf durlok - un -"]
["14.2 Sist.PVC chapa galv. Natural reforz.c/col - m2 -"]
["15-Bloques para losas - cerámicos y telgopor - un -"]
["16-Adhesivos"]
["16.3 Para pisos y revestimientos"]
["16.2 Para alfombras y pisos de goma"]
["16.3 Para pisos vinílicos"]
["16.4 Para pisos de madera"]
["17-Maderas"]
["17.1 Tablas de pino - m2 -"]
["17.2 Tirantes por ml - hasta 5m -"]
["17.3 Machimbres"]
["17.4 Fenólicos"]
["17.5 Madera Industrializada"]
["17.5.1 Tablero Finger Joint pino (1,20 x 3,00) - un -"]
["17.5.2 Viguetas multilaminadas - un -"]
["18-Cubiertas de Techo"]
["18.1 Chapas galvanizadas"]
["18.2 Chapas plásticas traslúcidas - un -"]
["18.3 Chapas de cartón - un -"]
["18.4 Chapas de cincalum"]
["18.5 Tejas"]
["18.6 Tejas metálicas tipo francesas - un -"]
["19-Aberturas"]
["19.1 Aluminio con cerradura Herr. Y Vidrio"]
["19.2 Madera con marco de chapa"]
["19.3 Metálicas chapas N 18"]
["20-Cortinas de enrrollar y persianas"]
["20.1 Interiores - m2 -"]
["20.2 Sistemas completos m2"]
["21-Herrajes y cerraduras"]
["22-Pisos"]
["22.1 Alfombras y cesped sintético - m2 -"]
["22.2 Pisos de goma - m2 -"]
["22.3 Pisos flotantes - m2 -"]
["22.4 Pisos de madera sin colocación - m2 -"]
["22.5 Pisos vinílicos - m2 -"]
["22.6 Pisos adiquines - m2 -"]
["22.7 Losetas de cementos - m2 -"]
["22.8 Pisos calcareos - m2 -"]
["22.9 Pisos graníticos - m2 -"]
["22.10 Pisos cerámicos - m2 -"]
["22.11 Pisos mármol - m2 -"]
["23-Zócalos"]
["23.1 Calcáreos - ml -"]
["23.2 Graníticos - ml -"]
["23.3 Cerámicos esmaltados - ml -"]
["23.4 Madera con colocación y platificado - ml -"]
["24-Revestimiento"]
["25-Mármoles, granitos, piedras naturales"]
["25.1 Mármoles - m2 -"]
["25.2 Granitos - m2 -"]
["25.3 Piedras naturales lajas - m2 -"]
["26-Molduras ml"]
["27-Instalaciones contra incedios - un -"]
["28-Instalación Eléctrica"]
["28.1 Caja de distribución metálica - un -"]
["28.2 Caja para conexiones - un -"]
["28.3 Caños - un -"]
["28.4 Curvas - un -"]
["28.5 Uniones - un -"]
["28.6 Conectores - un -"]
["28.7 Pilar - un -"]
["28.8 Tableros - un -"]
["28.9 Llaves armadas de embutir linea tipo Verona - un -"]
["28.10 Llaves armadas embutir marfil tradicional - un -"]
["28.11 Llaves armadas de superficie - un -"]
["28.12 Iluminación - un -"]
["28.13 Conductores - un -"]
["28.14 Protecciones - un -"]
["29-Instalaciones de gas"]
["30-Sanitarios"]
["30.1 Baño tipo ferrum - un -"]
["30.2 Vanitory - mueble blanco laqueado - línea veneto - un -"]
["30.3 Cocinas - un -"]
["30.4 Juegos para baños y cocina - un -"]
["30.4.1 Baños Fv -un-"]
["30.4.2 Cocina Fv -un-"]
["30.5 Instalaciones sanitarias"]
["30.5.1 Accesorios FV - un -"]
["30.5.2 Discapacidad"]
["30.6 Canillas FV - un -"]
["30.6.1 Para pared - un -"]
["30.6.2 Desagues - un -"]
["30.6.3 Llaves de paso y Válvulas escrusas"]
["30.7 Tubosde polipropileno"]
["30.7.1 Codos"]
["30.7.2 Portarejillas con rejillas"]
["30.7.3 Piletas y bocas de acceso"]
["30.8 Ramales - un -"]
["30.9 Curvas - un -"]
["30.10 Tuberías cloacales-pluviales-ventilación - un -"]
["30.11 Bujes de reducción -un -"]
["30.12 Sifones - un -"]
["30.12.1 Tipo botella"]
["30.12.2 Tipo standard"]
["30.13 Varios"]
["30.14 Tuberías"]
["30.14.1 Para aguafria tipo H3 x 6m - un -"]
["30.14.2 Para agua fria y caliente tipo H3 x 6m - un -"]
["30.14.3 Para calefacción tipo H3 x 6m - un -"]
["30.15 Conexiones - un -"]
["30.16 Tanques y Cámaras - un -"]
["30.17 Amoblamientos para baños y cocinas - un -"]
["31-Telefonía Porteros Alarmas - un -"]
["32-Televisión - un -"]
["33-Acondicionadores de Aire - un -"]
["34-Rejilla de ventilación"]
["35-Extractores para baños y cocinas"]
["36-Extractores eólicos giratorios con colocación - un -"]
["37-Piletas de natación y accesorios"]
["37.1 Equipamientos - un -"]
["37.2 Filtros y Bomas - un -"]
["37.3 Pisos atérmicos-antideslizantes - un -"]
["37.4 Guardas Veneciano - un -"]
["38-Calefacción"]
["38.1 Calefones - un -"]
["38.2 Cocina a leña Salamandra - un -"]
["39-Pinturas y Accesorios"]
["39.1 Pinturas"]
["39.2 Pintura para pisos"]
["39.3 Accesorios - un -"]
["40-Decoración"]
["40.1Tapizados - ml -"]
["40.2 Mediasombra - ml -"]
["41-Vidrios y Espejos"]
["41.1 Vidrios - m2 -"]
["41.2 Espejos - m2 -"]
["42-Gastos de oficina"]
["43-Parquizaciones"]
["44-Alquiler de camiontas"]

{"sheet":"Computo","index":1,"n_rows":45,"n_cols":9,"rows_kept":45,"cut":false,"hidden":false,"merged":[]}
[null,"Desig.","","L [m]","H [m]","","",""]
[null,1,0.18,12.5,5,{"$f":"D2*E2","v":62.5},{"$f":"4*4+2*0.8+1.2*1","v":18.8},{"$f":"F2-G2","v":43.7}]
[null,2,0.18,12.5,5,62.5,null,62.5]
[null,3,0.18,20,5,100,null,100]
[null,4,0.18,20,5,100,null,100]
[null,5,0.12,1.3,2.7,3.5100000000000002,{"$f":"0.6*0.4","v":0.24},3.2700000000000005]
[null,6,0.12,1.3,2.7,3.5100000000000002,{"$f":"0.8*2","v":1.6},1.9100000000000001]
[null,7,0.12,2.85,2.7,7.6950000000000012,1.6,6.0950000000000006]
[null,8,0.12,2.85,2.7,7.6950000000000012,null,7.6950000000000012]
[null,null,null,null,null,{"$f":"SUM(F2:F9)","v":347.40999999999997},22.240000000000002,325.17]
[]
["demoliciones"]
["Desig.","Dirección","","L [m]","H [m]","","",""]
["m1",null,null,null,null,{"$f":"D14*E14","v":0},null,{"$f":"F14-G14","v":0}]
["m2",null,null,null,null,0,null,0]
["m3",null,null,null,null,0,null,0]
["m4",null,null,null,null,0,null,0]
["m5",null,null,null,null,0,null,0]
["m6",null,null,null,null,0,null,0]
[null,null,null,null,null,{"$f":"SUM(F14:F19)","v":0},null,{"$f":"SUM(H14:H19)","v":0}]
[]
["Local","1","5","6","7"]
["uso","TINGLADO","KITCHENET","BAÑO","totales"]
["a",12.2,2.85,1.3]
["b",18,2.85,1.3]
["h",5,2.7,2.7]
["",0,0,2]
["",{"$f":"B26-B27","v":5},2.7,0.70000000000000018,{"$f":"SUM(B28:D28)","v":8.4}]
["A",{"$f":"+B30","v":219.6},8.1225000000000005,1.6900000000000002,229.41249999999999]
["A*",{"$f":"B24*B25","v":219.6},8.1225000000000005,1.6900000000000002,229.41249999999999]
["",{"$f":"+B32*B27","v":0},0,10.4,10.4]
["P",{"$f":"2*(B24+B25)","v":60.4},11.4,5.2,77]
["estructura de techo",{"$f":"B29","v":219.6},8.1225000000000005,1.6900000000000002,229.41249999999999]
["cubierta de techo",{"$f":"B29","v":219.6},8.1225000000000005,1.6900000000000002,229.41249999999999]
["cielorraso",{"$f":"B29","v":219.6},8.1225000000000005,1.6900000000000002,229.41249999999999]
["zingueria",{"$f":"+B32","v":60.4},null,0,60.4]
["revoques",{"$f":"+B32*B28*2","v":604},61.560000000000009,7.280000000000002,672.84]
["revestimientos",{"$f":"+B31*B32","v":0},{"$f":"C32*C27","v":0},10.4,10.4]
["carpeta",{"$f":"+B29","v":219.6},8.1225000000000005,1.6900000000000002,229.41249999999999]
["piso",{"$f":"+B29","v":219.6},8.1225000000000005,1.6900000000000002,229.41249999999999]
["zócalo",{"$f":"+B32","v":60.4},11.4,5.2,77]
["pintura int.",{"$f":"+B37","v":604},61.560000000000009,7.280000000000002,672.84]
["desagües Cloacales",null,null,4,4]
["Inst. Eléctrica",8,1,1,10]
["Carpinteria colocación",{"$f":"+#REF!","v":{"$error":"#REF!"}},{"$error":"#REF!"},{"$error":"#REF!"},null,null,null,null,{"$f":"SUM(B45:H45)","v":{"$error":"#REF!"}}]

{"sheet":"Presupuesto","index":2,"n_rows":41,"n_cols":10,"rows_kept":41,"cut":false,"hidden":false,"merged":[[23,3,24,3],[9,0,9,5],[19,3,19,4],[13,1,13,2],[21,3,21,4],[11,3,11,4],[13,3,13,4],[23,2,24,2],[21,0,21,2],[11,1,11,2],[23,0,24,0],[23,1,24,1],[2,0,2,3],[0,0,0,1],[0,2,0,5],[15,3,15,4],[17,0,17,5],[15,1,15,2]]}
[null,null,{"$f":"NOW()","v":"2023-03-29T09:41:45.630"}]
[]
["PLANILLA RESUMEN DE COMPUTO Y PRESUPUESTO - PRESUPUESTO DE MANO DE OBRA"]
[]
["OBRA:"]
["UBICACIÓN:"]
["COMITENTE:"]
["REFERENCIA:"]
[]
["Se tomó como referencia los precios publicados en la Revista Cuadros de Costos N 162 correspondiente al mes de diciembre de 2022."]
[]
[null,"MANO DE OBRA",null,{"$f":"SUM(E26:E41)","v":10355086.752600003}]
[]
[null,"MATERIALES",null,{"$f":"SUM(F26:F41)","v":10041721.708963675}]
[]
[null,"SUBTOTAL DIC-2022",null,{"$f":"SUM(E26:F41)","v":20396808.461563669}]
[]
[]
[]
[null,null,"SUBTOTAL MAR-2023",{"$f":"SUM(E30:F42)*1.2","v":23968237.886476409}]
[]
["Precio con IVA y Beneficios",null,null,{"$f":"1.7*D20","v":40746004.407009892}]
[]
["ITEM","DENOMINACION","CANTIDAD","UD.","ITEM","ITEM"]
[null,null,null,null,"MO","MAT"]
[1,"REPLANTEO Y PRELIMINARES",{"$f":"5.3*23.9","v":126.66999999999999},"m²",{"$f":"LOOKUP(A26,'Análisis de Precios'!B:B,'Análisis de Precios'!F:F)","v":45658.201499999996},{"$f":"LOOKUP(A26,'Análisis de Precios'!B:B,'Análisis de Precios'!G:G)","v":0}]
[2,"NIVELACION COMPACTACION Y RELLENO",100,"m²",{"$f":"LOOKUP(A27,'Análisis de Precios'!B:B,'Análisis de Precios'!F:F)","v":55980},{"$f":"LOOKUP(A27,'Análisis de Precios'!B:B,'Análisis de Precios'!G:G)","v":0}]
[3,"EXCAVACION PARA FUNDACIONES",{"$f":"1.5*1.5*1.5*14+23.9*2*0.1*0.3","v":48.683999999999997},"m³",{"$f":"LOOKUP(A28,'Análisis de Precios'!B:B,'Análisis de Precios'!F:F)","v":181688.68799999999},{"$f":"LOOKUP(A28,'Análisis de Precios'!B:B,'Análisis de Precios'!G:G)","v":0}]
[4,"DOBLADO DE ACEROS",2000,"Kg",{"$f":"LOOKUP(A29,'Análisis de Precios'!B:B,'Análisis de Precios'!F:F)","v":139950},{"$f":"LOOKUP(A29,'Análisis de Precios'!B:B,'Análisis de Precios'!G:G)","v":0},null,{"$f":"+PI()*(6/20)^2/10000","v":2.8274333882308141E-5},{"$f":"+H29*7850","v":0.2219535209761189},{"$f":"23.9*3*4/0.15","v":1911.9999999999998}]
[5,"FUNDACIONES DE HORMIGON ARMADO",{"$f":"1.5*1.5*0.5*14+0.4*0.4*1*14","v":17.990000000000002},"m³",{"$f":"LOOKUP(A30,'Análisis de Precios'!B:B,'Análisis de Precios'!F:F)","v":732372.90000000014},{"$f":"LOOKUP(A30,'Análisis de Precios'!B:B,'Análisis de Precios'!G:G)","v":272600.92453794146},null,{"$f":"+PI()*(8/20)^2/10000","v":5.0265482457436693E-5},{"$f":"+H30*7850","v":0.39458403729087804},{"$f":"23.9*3*4*4","v":1147.1999999999998}]
[6,"CAPA AISLADORA CAJÓN",{"$f":"+(23.9*2+5.3*2)*0.18","v":10.511999999999999},"m²",{"$f":"LOOKUP(A31,'Análisis de Precios'!B:B,'Análisis de Precios'!F:F)","v":35572.607999999993},{"$f":"LOOKUP(A31,'Análisis de Precios'!B:B,'Análisis de Precios'!G:G)","v":53530.562969256192},null,{"$f":"+PI()*(10/20)^2/10000","v":7.8539816339744827E-5},{"$f":"+H31*7850","v":0.61653755826699685}]
[7,"MAMP DE ELEVACION DE 18",{"$f":"+(23.9*2+5.3*2)*(3.1+2.1*3)","v":548.96},"m²",{"$f":"LOOKUP(A32,'Análisis de Precios'!B:B,'Análisis de Precios'!F:F)","v":1250105.4360000002},{"$f":"LOOKUP(A32,'Análisis de Precios'!B:B,'Análisis de Precios'!G:G)","v":1431783.8614214878},null,{"$f":"+PI()*(0.6)^2/10000","v":1.1309733552923256E-4},0.88781408390447558,{"$f":"3*3*5*4*2*1.5","v":540}]
[8,"REFUERZOS H°A° MAMPOSTERÍA",{"$f":"+C31*0.03","v":0.31535999999999997},"m³",{"$f":"LOOKUP(A33,'Análisis de Precios'!B:B,'Análisis de Precios'!F:F)","v":12838.3056},{"$f":"LOOKUP(A33,'Análisis de Precios'!B:B,'Análisis de Precios'!G:G)","v":8094.8244387678433},null,null,null,{"$f":"+SUMPRODUCT(I29:I32,J29:J32)","v":1356.4615449948512}]
[9,"CARPINTERIAS - SOLO COLOCACIÓN",15,"GL",{"$f":"LOOKUP(A34,'Análisis de Precios'!B:B,'Análisis de Precios'!F:F)","v":33075},{"$f":"LOOKUP(A34,'Análisis de Precios'!B:B,'Análisis de Precios'!G:G)","v":1431186.3879436071}]
[10,"CARPINTERIAS - PREPARACIÓN COLOCACIÓN",15,"m²",{"$f":"LOOKUP(A35,'Análisis de Precios'!B:B,'Análisis de Precios'!F:F)","v":40302.9},{"$f":"LOOKUP(A35,'Análisis de Precios'!B:B,'Análisis de Precios'!G:G)","v":6182.1322314049585}]
[11,"AZOTADO IMPERMEABLE interior",{"$f":"+C32","v":548.96},"m²",{"$f":"LOOKUP(A36,'Análisis de Precios'!B:B,'Análisis de Precios'!F:F)","v":838056.06},{"$f":"LOOKUP(A36,'Análisis de Precios'!B:B,'Análisis de Precios'!G:G)","v":1642668.9550611575}]
[12,"REVOQUE FRATASADO ",{"$f":"+C32*2","v":1097.92},"m²",{"$f":"LOOKUP(A37,'Análisis de Precios'!B:B,'Análisis de Precios'!F:F)","v":514007.71680000005},{"$f":"LOOKUP(A37,'Análisis de Precios'!B:B,'Análisis de Precios'!G:G)","v":1219507.834710744}]
[13,"PISO INDUSTRIAL H°A°",{"$f":"+C26","v":126.66999999999999},"m³",{"$f":"LOOKUP(A38,'Análisis de Precios'!B:B,'Análisis de Precios'!F:F)","v":5855004.0749999993},{"$f":"LOOKUP(A38,'Análisis de Precios'!B:B,'Análisis de Precios'!G:G)","v":3143939.9960078439}]
[14,"PÍNTURA AL LATEX ",{"$f":"+C37","v":1097.92},"m²",{"$f":"LOOKUP(A39,'Análisis de Precios'!B:B,'Análisis de Precios'!F:F)","v":268177.93920000002},{"$f":"LOOKUP(A39,'Análisis de Precios'!B:B,'Análisis de Precios'!G:G)","v":326797.24905785127}]
[15,"CUBIERTA SOBRE ESTRUCTURA METÁLICA",{"$f":"+C26","v":126.66999999999999},"m²",{"$f":"LOOKUP(A40,'Análisis de Precios'!B:B,'Análisis de Precios'!F:F)","v":327663.62249999994},{"$f":"LOOKUP(A40,'Análisis de Precios'!B:B,'Análisis de Precios'!G:G)","v":445756.25331088656}]
[16,"ZINGUERÍA",1,"GL",{"$f":"LOOKUP(A41,'Análisis de Precios'!B:B,'Análisis de Precios'!F:F)","v":24633.3},{"$f":"LOOKUP(A41,'Análisis de Precios'!B:B,'Análisis de Precios'!G:G)","v":59672.727272727272}]

{"sheet":"Análisis de Precios","index":3,"n_rows":235,"n_cols":8,"rows_kept":235,"cut":false,"hidden":false,"merged":[[0,2,0,3],[0,4,0,7],[5,2,5,7],[15,2,15,7],[14,2,14,7],[6,2,6,7],[7,2,7,7],[16,2,16,7],[187,2,187,7],[23,2,23,7],[67,2,67,7],[81,2,81,7],[95,2,95,7],[104,2,104,7],[117,2,117,7],[130,2,130,7],[143,2,143,7],[157,2,157,7],[169,2,169,7],[31,2,31,7],[53,2,53,7],[39,2,39,7]]}
[null,null,null,null,{"$f":"NOW()","v":"2023-03-29T09:41:45.630"}]
[]
[null,null,"ANALISIS UNITARIO POR RUBROS","Computo","Unidad","M. O","Materiales","P.U ($/un)"]
[]
[null,1,{"$f":"LOOKUP(B5,Presupuesto!A$26:A$40,Presupuesto!$B$26:$B$40)","v":"REPLANTEO Y PRELIMINARES"},{"$f":"LOOKUP(B5,Presupuesto!A:A,Presupuesto!C:C)","v":126.66999999999999},{"$f":"LOOKUP(B5,Presupuesto!A$26:A$40,Presupuesto!$D$26:$D$40)","v":"m²"},{"$f":"+SUMPRODUCT(G11:G12,E11:E12)","v":45658.201499999996},null,{"$f":"+SUMPRODUCT(G11:G12,F11:F12)","v":360.45}]
[]
[null,null,"Incluye armado de vallado perimetral para fijación de puntos de replanteo, marcado de ejes de mamposterias y filo exterior e interior sin incluir revoque, sobre piso de losa con hilo embebido en ferrite. incluye demolición de porciónes de muros existentes, recuperación de material para escombros y relleno para compactar."]
[]
[null,null,null,"un","Cantidad","Rendimiento","P.U"]
[null,null,"Mano de Obra"]
[101,null,{"$f":"LOOKUP(A11,Materiales!$C$10:$C$337,Materiales!$D$10:$D$348)","v":"Horas Oficial"},{"$f":"LOOKUP(A11,Materiales!$C$11:$C$337,Materiales!$E$11:$E$339)","v":"HS"},{"$f":"+F11*$D$5","v":25.334},0.2,{"$f":"LOOKUP(A11,Materiales!C:C,Materiales!G:G)","v":1102.5}]
[102,null,{"$f":"LOOKUP(A12,Materiales!$C$10:$C$337,Materiales!$D$10:$D$348)","v":"Horas Ayudante"},{"$f":"LOOKUP(A12,Materiales!$C$11:$C$337,Materiales!$E$11:$E$339)","v":"HS"},19.000499999999999,0.15,{"$f":"LOOKUP(A12,Materiales!C:C,Materiales!G:G)","v":933}]
[]
[null,2,{"$f":"LOOKUP($B$14,Presupuesto!A$26:A$40,Presupuesto!$B$26:$B$40)","v":"NIVELACION COMPACTACION Y RELLENO"},{"$f":"LOOKUP($B$14,Presupuesto!A$26:A$40,Presupuesto!$C$26:$C$40)","v":100},{"$f":"LOOKUP($B$14,Presupuesto!A$26:A$40,Presupuesto!$D$26:$D$40)","v":"m²"},{"$f":"+SUMPRODUCT(G20,E20)","v":55980},null,{"$f":"+SUMPRODUCT(G20,F20)","v":559.79999999999995}]
[]
[null,null,"Con pizón manual  en una a dos capas, incluye desmonte de las zonas elevadas, mexcla de suelo y escombros para refozar suelo. perfilado final con pala ,queda el terreno preparado para recibir al contrapiso. espesor promedio de trabajo :  5/10 cm. incluye el traslado y distribucion de suelo de relleno :  7 mts."]
[]
[null,null,null,"un","Cantidad","Rendimiento","P.U"]
[null,null,"Mano de Obra"]
[102,null,{"$f":"LOOKUP(A20,Materiales!$C$10:$C$337,Materiales!$D$10:$D$348)","v":"Horas Ayudante"},{"$f":"LOOKUP(A20,Materiales!$C$11:$C$337,Materiales!$E$11:$E$339)","v":"HS"},{"$f":"+F20*$D$14","v":60},0.6,{"$f":"LOOKUP(A20,Materiales!C:C,Materiales!G:G)","v":933}]
[]
[null,3,{"$f":"LOOKUP(B22,Presupuesto!A$26:A$40,Presupuesto!$B$26:$B$40)","v":"EXCAVACION PARA FUNDACIONES"},{"$f":"LOOKUP(B22,Presupuesto!A$26:A$40,Presupuesto!$C$26:$C$40)","v":48.683999999999997},{"$f":"LOOKUP(B22,Presupuesto!A$26:A$40,Presupuesto!$D$26:$D$40)","v":"m³"},{"$f":"+SUMPRODUCT(G28,E28)","v":181688.68799999999},null,{"$f":"+SUMPRODUCT(F28,G28)","v":3732}]
[]
[null,null,"Excavación a mano en tierra colorada para zanja de hasta 0,3mts de ancho, y hasta 0,2 mts de profundidad. el suelo extraido se aprovecha para posterior relleno y compactacion. suelo de fundacion compactado manualmente por impacto con pison de 15 kg desde altura 0,40 mts incluye remoción de escombros y pisos cortados con amoladora angular."]
[]
[null,null,null,"un","Cantidad","Rendimiento","P.U"]
[null,null,"Mano de Obra"]
[102,null,{"$f":"LOOKUP(A28,Materiales!$C$10:$C$337,Materiales!$D$10:$D$348)","v":"Horas Ayudante"},{"$f":"LOOKUP(A28,Materiales!$C$11:$C$337,Materiales!$E$11:$E$339)","v":"HS"},{"$f":"+F28*$D$22","v":194.73599999999999},4,{"$f":"LOOKUP(A28,Materiales!C:C,Materiales!G:G)","v":933}]
[]
[null,4,{"$f":"LOOKUP(B30,Presupuesto!A$26:A$40,Presupuesto!$B$26:$B$40)","v":"DOBLADO DE ACEROS"},{"$f":"LOOKUP(B30,Presupuesto!A$26:A$40,Presupuesto!$C$26:$C$40)","v":2000},{"$f":"LOOKUP(B30,Presupuesto!A$26:A$637,Presupuesto!$D$26:$D$639)","v":"Kg"},{"$f":"+SUMPRODUCT(G36,E36)","v":139950},null,{"$f":"+SUMPRODUCT(G36,F36)","v":69.974999999999994}]
[]
[null,null,"Corresponde a los doblados y cortes de barras para ejecución de armaduras de refuerzos verticales y horizontales en mamposterias y apoyos de estructura de techo, se ejecutan a mano con grinfas de diferentes tamaños, y en mesa de doblado convencional hecha con planchas de gruesas de madera."]
[]
[null,null,null,"un","Cantidad","Rendimiento","P.U"]
[null,null,"Mano de Obra"]
[102,null,{"$f":"LOOKUP(A36,Materiales!$C$10:$C$337,Materiales!$D$10:$D$348)","v":"Horas Ayudante"},{"$f":"LOOKUP(A36,Materiales!$C$11:$C$337,Materiales!$E$11:$E$339)","v":"HS"},{"$f":"+F36*$D$30","v":150},7.4999999999999997E-2,{"$f":"LOOKUP(A36,Materiales!C:C,Materiales!G:G)","v":933}]
[]
[null,5,{"$f":"LOOKUP(B38,Presupuesto!A$26:A$40,Presupuesto!$B$26:$B$40)","v":"FUNDACIONES DE HORMIGON ARMADO"},{"$f":"LOOKUP(B38,Presupuesto!A$26:A$40,Presupuesto!$C$26:$C$40)","v":17.990000000000002},{"$f":"LOOKUP(B38,Presupuesto!A$26:A$637,Presupuesto!$D$26:$D$639)","v":"m³"},{"$f":"+SUMPRODUCT(E49:E50,G49:G50)","v":732372.90000000014},{"$f":"+SUMPRODUCT(E44:E47,G44:G47)","v":272600.92453794146},{"$f":"+SUMPRODUCT(F44:F50,G44:G50)","v":66378.519909842231}]
[]
[]
[]
[null,null,null,"un","Cantidad","Rendimiento","P.U"]
[null,null,"Materiales"]
[301,null,{"$f":"LOOKUP(A44,Materiales!$C$10:$C$337,Materiales!$D$10:$D$348)","v":"Cemento Portland"},{"$f":"LOOKUP(A44,Materiales!$C$11:$C$337,Materiales!$E$11:$E$339)","v":"bls."},{"$f":"+F44*$D$38","v":107.94000000000001},6,{"$f":"LOOKUP(A44,Materiales!$C$11:$C$337,Materiales!$G$11:$G$339)","v":1603.3057851239671}]
[304,null,{"$f":"LOOKUP(A45,Materiales!$C$10:$C$337,Materiales!$D$10:$D$348)","v":"Arena mediana"},{"$f":"LOOKUP(A45,Materiales!$C$11:$C$337,Materiales!$E$11:$E$339)","v":"m³"},11.873400000000002,0.66,{"$f":"LOOKUP(A45,Materiales!$C$11:$C$337,Materiales!$G$11:$G$339)","v":3801.6528925619837}]
[308,null,{"$f":"LOOKUP(A46,Materiales!$C$10:$C$337,Materiales!$D$10:$D$348)","v":"Piedra 6/20"},{"$f":"LOOKUP(A46,Materiales!$C$11:$C$337,Materiales!$E$11:$E$339)","v":"m³"},11.873400000000002,0.66,{"$f":"LOOKUP(A46,Materiales!$C$11:$C$337,Materiales!$G$11:$G$339)","v":4297.5206611570247}]
["316-1",null,{"$f":"LOOKUP(A47,Materiales!$C$10:$C$337,Materiales!$D$10:$D$348)","v":"Hierro Ø 6 torsionado"},{"$f":"LOOKUP(A47,Materiales!$C$11:$C$337,Materiales!$E$11:$E$339)","v":"Kg."},{"$f":"$D$80*F47","v":9.460799999999999},30,{"$f":"LOOKUP(A47,Materiales!$C$11:$C$337,Materiales!$G$11:$G$339)","v":356.77435512146258}]
[null,null,"Mano de Obra"]
[101,null,{"$f":"LOOKUP(A49,Materiales!$C$10:$C$337,Materiales!$D$10:$D$348)","v":"Horas Oficial"},{"$f":"LOOKUP(A49,Materiales!$C$11:$C$337,Materiales!$E$11:$E$339)","v":"HS"},{"$f":"+F49*$D$38","v":359.80000000000007},20,{"$f":"LOOKUP(A49,Materiales!$C$11:$C$337,Materiales!$G$11:$G$339)","v":1102.5}]
[102,null,{"$f":"LOOKUP(A50,Materiales!$C$10:$C$337,Materiales!$D$10:$D$348)","v":"Horas Ayudante"},{"$f":"LOOKUP(A50,Materiales!$C$11:$C$337,Materiales!$E$11:$E$339)","v":"HS"},359.80000000000007,20,{"$f":"LOOKUP(A50,Materiales!$C$11:$C$337,Materiales!$G$11:$G$339)","v":933}]
[]
[null,6,{"$f":"LOOKUP(B52,Presupuesto!A$26:A$40,Presupuesto!$B$26:$B$40)","v":"CAPA AISLADORA CAJÓN"},{"$f":"LOOKUP(B52,Presupuesto!A$26:A$40,Presupuesto!$C$26:$C$40)","v":10.511999999999999},{"$f":"LOOKUP(B52,Presupuesto!A$26:A$637,Presupuesto!$D$26:$D$639)","v":"m²"},{"$f":"+SUMPRODUCT(G63:G64,E63:E64)","v":35572.607999999993},{"$f":"+SUMPRODUCT(E58:E61,G58:G61)","v":53530.562969256192},{"$f":"+SUMPRODUCT(F58:F64,G58:G64)","v":8476.3290495867768}]
[]
[null,null,"Ejecutado  mamposterias de ladrillo ceramico hueco reforzadas con encadenados perimetrales, con hormigon elaborado al pie de obra con hormigonera de 60 lts. Incluye armado de hierros en banco. Colocacion de encofrado de tablas de madera de pino con costillas de tirantes de madera."]
[]
[null,null,null,"un","Cantidad","Rendimiento","P.U"]
[null,null,"Materiales"]
[301,null,{"$f":"LOOKUP(A58,Materiales!$C$10:$C$337,Materiales!$D$10:$D$348)","v":"Cemento Portland"},{"$f":"LOOKUP(A58,Materiales!C:C,Materiales!E:E)","v":"bls."},{"$f":"+F58*$D$52","v":3.1535999999999995},0.3,{"$f":"LOOKUP(A58,Materiales!$C$11:$C$337,Materiales!$G$11:$G$339)","v":1603.3057851239671}]
[304,null,{"$f":"LOOKUP(A59,Materiales!$C$10:$C$337,Materiales!$D$10:$D$348)","v":"Arena mediana"},{"$f":"LOOKUP(A59,Materiales!C:C,Materiales!E:E)","v":"m³"},6.9379199999999992,0.66,{"$f":"LOOKUP(A59,Materiales!$C$11:$C$337,Materiales!$G$11:$G$339)","v":3801.6528925619837}]
[310,null,{"$f":"LOOKUP(A60,Materiales!$C$10:$C$337,Materiales!$D$10:$D$348)","v":"Hidrófugo"},{"$f":"LOOKUP(A60,Materiales!C:C,Materiales!E:E)","v":"Kg."},0.15767999999999999,{"$f":"+F58/2*0.1","v":1.4999999999999999E-2},{"$f":"LOOKUP(A60,Materiales!$C$11:$C$337,Materiales!$G$11:$G$339)","v":149.7603305785124}]
[403,null,{"$f":"LOOKUP(A61,Materiales!$C$10:$C$337,Materiales!$D$10:$D$348)","v":"Ladrillos livianos 18 x 18 x 25"},{"$f":"LOOKUP(A61,Materiales!C:C,Materiales!E:E)","v":"un."},220.75199999999998,21,{"$f":"LOOKUP(A61,Materiales!$C$11:$C$337,Materiales!$G$11:$G$339)","v":100}]
[null,null,"Mano de Obra"]
[101,null,{"$f":"LOOKUP(A63,Materiales!$C$10:$C$337,Materiales!$D$10:$D$348)","v":"Horas Oficial"},{"$f":"LOOKUP(A63,Materiales!C:C,Materiales!E:E)","v":"HS"},{"$f":"+F63*$D$52","v":18.921599999999998},1.8,{"$f":"LOOKUP(A63,Materiales!$C$11:$C$337,Materiales!$G$11:$G$339)","v":1102.5}]
[102,null,{"$f":"LOOKUP(A64,Materiales!$C$10:$C$337,Materiales!$D$10:$D$348)","v":"Horas Ayudante"},{"$f":"LOOKUP(A64,Materiales!C:C,Materiales!E:E)","v":"HS"},15.767999999999997,1.5,{"$f":"LOOKUP(A64,Materiales!$C$11:$C$337,Materiales!$G$11:$G$339)","v":933}]
[]
[null,7,{"$f":"LOOKUP(B66,Presupuesto!A$26:A$40,Presupuesto!$B$26:$B$40)","v":"MAMP DE ELEVACION DE 18"},{"$f":"LOOKUP(B66,Presupuesto!A$26:A$40,Presupuesto!$C$26:$C$40)","v":548.96},{"$f":"LOOKUP(B66,Presupuesto!A$26:A$637,Presupuesto!$D$26:$D$639)","v":"m²"},{"$f":"+SUMPRODUCT(G77:G78,E77:E78)","v":1250105.4360000002},{"$f":"+SUMPRODUCT(G72:G75,E72:E75)","v":1431783.8614214878},{"$f":"+SUMPRODUCT(G67:G78,F67:F78)","v":4885.40020661157}]
[]
[]
[]
[null,null,null,"un","Cantidad","Rendimiento","P.U"]
[null,null,"Materiales"]
[403,null,{"$f":"LOOKUP(A72,Materiales!$C$10:$C$337,Materiales!$D$10:$D$348)","v":"Ladrillos livianos 18 x 18 x 25"},{"$f":"LOOKUP(A72,Materiales!C:C,Materiales!E:E)","v":"un."},{"$f":"+F72*$D$66","v":11528.16},21,{"$f":"LOOKUP(A72,Materiales!$C$11:$C$337,Materiales!$G$11:$G$339)","v":100}]
[304,null,{"$f":"LOOKUP(A73,Materiales!$C$10:$C$337,Materiales!$D$10:$D$348)","v":"Arena mediana"},{"$f":"LOOKUP(A73,Materiales!C:C,Materiales!E:E)","v":"m³"},32.937600000000003,0.06,{"$f":"LOOKUP(A73,Materiales!$C$11:$C$337,Materiales!$G$11:$G$339)","v":3801.6528925619837}]
[303,null,{"$f":"LOOKUP(A74,Materiales!$C$10:$C$337,Materiales!$D$10:$D$348)","v":"Cemento de albañilería"},{"$f":"LOOKUP(A74,Materiales!C:C,Materiales!E:E)","v":"bls."},87.833600000000004,0.16,{"$f":"LOOKUP(A74,Materiales!$C$11:$C$337,Materiales!$G$11:$G$339)","v":1603.3057851239671}]
[316,null,{"$f":"LOOKUP(A75,Materiales!$C$10:$C$337,Materiales!$D$10:$D$348)","v":"Hierro Ø 6 torsionado"},{"$f":"LOOKUP(A75,Materiales!C:C,Materiales!E:E)","v":"brs."},13.724000000000002,2.5000000000000001E-2,{"$f":"LOOKUP(A75,Materiales!$C$11:$C$337,Materiales!$G$11:$G$339)","v":941.88429752066122}]
[null,null,"Mano de Obra"]
[101,null,{"$f":"LOOKUP(A77,Materiales!$C$10:$C$331,Materiales!$D$10:$D$337)","v":"Horas Oficial"},{"$f":"LOOKUP(A77,Materiales!C:C,Materiales!E:E)","v":"HS"},{"$f":"+F77*$D$66","v":576.40800000000002},1.05,{"$f":"LOOKUP(A77,Materiales!$C$11:$C$337,Materiales!$G$11:$G$339)","v":1102.5}]
[102,null,{"$f":"LOOKUP(A78,Materiales!$C$10:$C$331,Materiales!$D$10:$D$337)","v":"Horas Ayudante"},{"$f":"LOOKUP(A78,Materiales!C:C,Materiales!E:E)","v":"HS"},658.75200000000007,1.2,{"$f":"LOOKUP(A78,Materiales!$C$11:$C$337,Materiales!$G$11:$G$339)","v":933}]
[]
[null,8,{"$f":"LOOKUP(B80,Presupuesto!A$26:A$40,Presupuesto!$B$26:$B$40)","v":"REFUERZOS H°A° MAMPOSTERÍA"},{"$f":"LOOKUP(B80,Presupuesto!A$26:A$40,Presupuesto!$C$26:$C$40)","v":0.31535999999999997},{"$f":"LOOKUP(B80,Presupuesto!A$26:A$637,Presupuesto!$D$26:$D$639)","v":"m³"},{"$f":"+SUMPRODUCT(G91:G92,E91:E92)","v":12838.3056},{"$f":"+SUMPRODUCT(G86:G89,E86:E89)","v":8094.8244387678433},{"$f":"+SUMPRODUCT(G81:G92,F81:F92)","v":66378.519909842231}]
[]
[]
[]
[null,null,null,"un","Cantidad","Rendimiento","P.U"]
[null,null,"Materiales"]
[301,null,{"$f":"LOOKUP(A86,Materiales!$C$10:$C$337,Materiales!$D$10:$D$348)","v":"Cemento Portland"},{"$f":"LOOKUP(A86,Materiales!$C$11:$C$337,Materiales!$E$11:$E$339)","v":"bls."},{"$f":"$D$80*F86","v":1.8921599999999998},6,{"$f":"LOOKUP(A86,Materiales!$C$11:$C$337,Materiales!$G$11:$G$339)","v":1603.3057851239671}]
[304,null,{"$f":"LOOKUP(A87,Materiales!$C$10:$C$337,Materiales!$D$10:$D$348)","v":"Arena mediana"},{"$f":"LOOKUP(A87,Materiales!$C$11:$C$337,Materiales!$E$11:$E$339)","v":"m³"},0.20813760000000001,0.66,{"$f":"LOOKUP(A87,Materiales!$C$11:$C$337,Materiales!$G$11:$G$339)","v":3801.6528925619837}]
[308,null,{"$f":"LOOKUP(A88,Materiales!$C$10:$C$337,Materiales!$D$10:$D$348)","v":"Piedra 6/20"},{"$f":"LOOKUP(A88,Materiales!$C$11:$C$337,Materiales!$E$11:$E$339)","v":"m³"},0.20813760000000001,0.66,{"$f":"LOOKUP(A88,Materiales!$C$11:$C$337,Materiales!$G$11:$G$339)","v":4297.5206611570247}]
["316-1",null,{"$f":"LOOKUP(A89,Materiales!$C$10:$C$337,Materiales!$D$10:$D$348)","v":"Hierro Ø 6 torsionado"},{"$f":"LOOKUP(A89,Materiales!$C$11:$C$337,Materiales!$E$11:$E$339)","v":"Kg."},9.460799999999999,30,{"$f":"LOOKUP(A89,Materiales!$C$11:$C$337,Materiales!$G$11:$G$339)","v":356.77435512146258}]
[null,null,"Mano de Obra"]
[101,null,{"$f":"LOOKUP(A91,Materiales!$C$10:$C$331,Materiales!$D$10:$D$337)","v":"Horas Oficial"},{"$f":"LOOKUP(A91,Materiales!$C$11:$C$331,Materiales!$E$11:$E$335)","v":"HS"},{"$f":"$D$80*F91","v":6.3071999999999999},20,{"$f":"LOOKUP(A91,Materiales!$C$11:$C$337,Materiales!$G$11:$G$339)","v":1102.5}]
[102,null,{"$f":"LOOKUP(A92,Materiales!$C$10:$C$331,Materiales!$D$10:$D$337)","v":"Horas Ayudante"},{"$f":"LOOKUP(A92,Materiales!$C$11:$C$331,Materiales!$E$11:$E$335)","v":"HS"},6.3071999999999999,20,{"$f":"LOOKUP(A92,Materiales!$C$11:$C$337,Materiales!$G$11:$G$339)","v":933}]
[]
[null,9,{"$f":"LOOKUP(B94,Presupuesto!A$26:A$40,Presupuesto!$B$26:$B$40)","v":"CARPINTERIAS - SOLO COLOCACIÓN"},{"$f":"LOOKUP(B94,Presupuesto!A$26:A$40,Presupuesto!$C$26:$C$40)","v":15},{"$f":"LOOKUP(B94,Presupuesto!A$26:A$637,Presupuesto!$D$26:$D$639)","v":"GL"},{"$f":"+SUMPRODUCT(G101,E101)","v":33075},{"$f":"+SUMPRODUCT(E99,G99)","v":1431186.3879436071}]
[]
[]
[null,null,null,"un","Cantidad","Rendimiento","P.U"]
[null,null,"Materiales"]
[618,null,{"$f":"LOOKUP(A99,Materiales!$C$10:$C$337,Materiales!$D$10:$D$348)","v":"Puerta aluminio blanco 1,00mx2,10m"},{"$f":"LOOKUP(A99,Materiales!$C$10:$C$337,Materiales!E:E)","v":"un."},{"$f":"+D94","v":15},1,{"$f":"LOOKUP(A99,Materiales!$C$11:$C$337,Materiales!$G$11:$G$339)","v":95412.425862907141}]
[null,null,"Mano de Obra"]
[101,null,{"$f":"LOOKUP(A101,Materiales!$C$10:$C$337,Materiales!$D$10:$D$348)","v":"Horas Oficial"},{"$f":"LOOKUP(A101,Materiales!$C$11:$C$337,Materiales!$E$11:$E$339)","v":"HS"},{"$f":"+F101*$D$94","v":30},2,{"$f":"LOOKUP(A101,Materiales!$C$11:$C$337,Materiales!$G$11:$G$339)","v":1102.5}]
[]
[null,10,{"$f":"LOOKUP(B103,Presupuesto!A$26:A$40,Presupuesto!$B$26:$B$40)","v":"CARPINTERIAS - PREPARACIÓN COLOCACIÓN"},{"$f":"LOOKUP(B103,Presupuesto!A$26:A$40,Presupuesto!$C$26:$C$40)","v":15},{"$f":"LOOKUP(B103,Presupuesto!A$26:A$637,Presupuesto!$D$26:$D$639)","v":"m²"},{"$f":"+SUMPRODUCT(G113:G114,E113:E114)","v":40302.9},{"$f":"+SUMPRODUCT(E109:E111,G109:G111)","v":6182.1322314049585},{"$f":"+SUMPRODUCT(F109:F114,G109:G114)","v":3099.0021487603308}]
[]
[]
[]
[null,null,null,"un","Cantidad","Rendimiento","P.U"]
[null,null,"Materiales"]
[301,null,{"$f":"LOOKUP(A109,Materiales!$C$10:$C$337,Materiales!$D$10:$D$348)","v":"Cemento Portland"},{"$f":"LOOKUP(A109,Materiales!$C$11:$C$337,Materiales!$E$11:$E$339)","v":"bls."},{"$f":"+F109*$D$103","v":3.5999999999999996},0.24,{"$f":"LOOKUP(A109,Materiales!$C$11:$C$337,Materiales!$G$11:$G$339)","v":1603.3057851239671}]
[304,null,{"$f":"LOOKUP(A110,Materiales!$C$10:$C$337,Materiales!$D$10:$D$348)","v":"Arena mediana"},{"$f":"LOOKUP(A110,Materiales!$C$11:$C$337,Materiales!$E$11:$E$339)","v":"m³"},1.4999999999999999E-2,1E-3,{"$f":"LOOKUP(A110,Materiales!$C$11:$C$337,Materiales!$G$11:$G$339)","v":3801.6528925619837}]
[316,null,{"$f":"LOOKUP(A111,Materiales!$C$10:$C$337,Materiales!$D$10:$D$348)","v":"Hierro Ø 6 torsionado"},{"$f":"LOOKUP(A111,Materiales!$C$11:$C$337,Materiales!$E$11:$E$339)","v":"brs."},0.375,2.5000000000000001E-2,{"$f":"LOOKUP(A111,Materiales!$C$11:$C$337,Materiales!$G$11:$G$339)","v":941.88429752066122}]
[null,null,"Mano de Obra"]
[101,null,{"$f":"LOOKUP(A113,Materiales!$C$10:$C$337,Materiales!$D$10:$D$348)","v":"Horas Oficial"},{"$f":"LOOKUP(A113,Materiales!$C$11:$C$337,Materiales!$E$11:$E$339)","v":"HS"},{"$f":"+F113*$D$103","v":19.8},1.32,{"$f":"LOOKUP(A113,Materiales!$C$11:$C$337,Materiales!$G$11:$G$339)","v":1102.5}]
[102,null,{"$f":"LOOKUP(A114,Materiales!$C$10:$C$337,Materiales!$D$10:$D$348)","v":"Horas Ayudante"},{"$f":"LOOKUP(A114,Materiales!$C$11:$C$337,Materiales!$E$11:$E$339)","v":"HS"},19.8,1.32,{"$f":"LOOKUP(A114,Materiales!$C$11:$C$337,Materiales!$G$11:$G$339)","v":933}]
[]
[null,11,{"$f":"LOOKUP(B116,Presupuesto!A$26:A$40,Presupuesto!$B$26:$B$40)","v":"AZOTADO IMPERMEABLE interior"},{"$f":"LOOKUP(B116,Presupuesto!A$26:A$40,Presupuesto!$C$26:$C$40)","v":548.96},{"$f":"LOOKUP(B116,Presupuesto!A$26:A$637,Presupuesto!$D$26:$D$639)","v":"m²"},{"$f":"+SUMPRODUCT(G126:G127,E126:E127)","v":838056.06},{"$f":"+SUMPRODUCT(E122:E124,G122:G124)","v":1642668.9550611575},{"$f":"+SUMPRODUCT(G117:G127,F117:F127)","v":4518.9540495867768}]
[]
[]
[]
[null,null,null,"un","Cantidad","Rendimiento","P.U"]
[null,null,"Materiales"]
[301,null,{"$f":"LOOKUP(A122,Materiales!$C$10:$C$337,Materiales!$D$10:$D$348)","v":"Cemento Portland"},{"$f":"LOOKUP(A122,Materiales!$C$11:$C$337,Materiales!$E$11:$E$339)","v":"bls."},{"$f":"+F122*$D$116","v":164.68800000000002},0.3,{"$f":"LOOKUP(A122,Materiales!$C$11:$C$337,Materiales!$G$11:$G$339)","v":1603.3057851239671}]
[304,null,{"$f":"LOOKUP(A123,Materiales!$C$10:$C$337,Materiales!$D$10:$D$348)","v":"Arena mediana"},{"$f":"LOOKUP(A123,Materiales!$C$11:$C$337,Materiales!$E$11:$E$339)","v":"m³"},362.31360000000006,0.66,{"$f":"LOOKUP(A123,Materiales!$C$11:$C$337,Materiales!$G$11:$G$339)","v":3801.6528925619837}]
[310,null,{"$f":"LOOKUP(A124,Materiales!$C$10:$C$337,Materiales!$D$10:$D$348)","v":"Hidrófugo"},{"$f":"LOOKUP(A124,Materiales!$C$11:$C$337,Materiales!$E$11:$E$339)","v":"Kg."},8.2344000000000008,{"$f":"+F122/2*0.1","v":1.4999999999999999E-2},{"$f":"LOOKUP(A124,Materiales!$C$11:$C$337,Materiales!$G$11:$G$339)","v":149.7603305785124}]
[null,null,"Mano de Obra"]
[101,null,{"$f":"LOOKUP(A126,Materiales!$C$10:$C$337,Materiales!$D$10:$D$348)","v":"Horas Oficial"},{"$f":"LOOKUP(A126,Materiales!$C$11:$C$337,Materiales!$E$11:$E$339)","v":"HS"},{"$f":"+F126*$D$116","v":411.72},0.75,{"$f":"LOOKUP(A126,Materiales!$C$11:$C$337,Materiales!$G$11:$G$339)","v":1102.5}]
[102,null,{"$f":"LOOKUP(A127,Materiales!$C$10:$C$337,Materiales!$D$10:$D$348)","v":"Horas Ayudante"},{"$f":"LOOKUP(A127,Materiales!$C$11:$C$337,Materiales!$E$11:$E$339)","v":"HS"},411.72,0.75,{"$f":"LOOKUP(A127,Materiales!$C$11:$C$337,Materiales!$G$11:$G$339)","v":933}]
[]
[null,12,{"$f":"LOOKUP(B129,Presupuesto!A$26:A$40,Presupuesto!$B$26:$B$40)","v":"REVOQUE FRATASADO "},{"$f":"LOOKUP(B129,Presupuesto!A$26:A$40,Presupuesto!$C$26:$C$40)","v":1097.92},{"$f":"LOOKUP(B129,Presupuesto!A$26:A$637,Presupuesto!$D$26:$D$639)","v":"m²"},{"$f":"+SUMPRODUCT(G139:G140,E139:E140)","v":514007.71680000005},{"$f":"+SUMPRODUCT(E135:E137,G135:G137)","v":1219507.834710744},{"$f":"+SUMPRODUCT(G135:G140,F135:F140)","v":1578.9088016528926}]
[null,null,null," "]
[]
[]
[null,null,null,"un","Cantidad","Rendimiento","P.U"]
[null,null,"Materiales"]
[301,null,{"$f":"LOOKUP(A135,Materiales!$C$10:$C$337,Materiales!$D$10:$D$348)","v":"Cemento Portland"},{"$f":"LOOKUP(A135,Materiales!$C$11:$C$337,Materiales!$E$11:$E$339)","v":"bls."},{"$f":"+F135*$D$129","v":87.833600000000004},0.08,{"$f":"LOOKUP(A135,Materiales!$C$11:$C$337,Materiales!$G$11:$G$339)","v":1603.3057851239671}]
[304,null,{"$f":"LOOKUP(A136,Materiales!$C$10:$C$337,Materiales!$D$10:$D$348)","v":"Arena mediana"},{"$f":"LOOKUP(A136,Materiales!$C$11:$C$337,Materiales!$E$11:$E$339)","v":"m³"},65.875200000000007,0.06,{"$f":"LOOKUP(A136,Materiales!$C$11:$C$337,Materiales!$G$11:$G$339)","v":3801.6528925619837}]
[302,null,{"$f":"LOOKUP(A137,Materiales!$C$10:$C$337,Materiales!$D$10:$D$348)","v":"Cal hidratada"},{"$f":"LOOKUP(A137,Materiales!$C$11:$C$337,Materiales!$E$11:$E$339)","v":"bls."},702.66880000000003,0.64,{"$f":"LOOKUP(A137,Materiales!$C$11:$C$337,Materiales!$G$11:$G$339)","v":1178.7190082644629}]
[null,null,"Mano de Obra"]
[101,null,{"$f":"LOOKUP(A139,Materiales!$C$10:$C$337,Materiales!$D$10:$D$348)","v":"Horas Oficial"},{"$f":"LOOKUP(A139,Materiales!$C$11:$C$337,Materiales!$E$11:$E$339)","v":"HS"},{"$f":"+F139*$D$129","v":252.52160000000003},0.23,{"$f":"LOOKUP(A139,Materiales!$C$11:$C$337,Materiales!$G$11:$G$339)","v":1102.5}]
[102,null,{"$f":"LOOKUP(A140,Materiales!$C$10:$C$337,Materiales!$D$10:$D$348)","v":"Horas Ayudante"},{"$f":"LOOKUP(A140,Materiales!$C$11:$C$337,Materiales!$E$11:$E$339)","v":"HS"},252.52160000000003,0.23,{"$f":"LOOKUP(A140,Materiales!$C$11:$C$337,Materiales!$G$11:$G$339)","v":933}]
[]
[null,13,{"$f":"LOOKUP(B142,Presupuesto!A$26:A$40,Presupuesto!$B$26:$B$40)","v":"PISO INDUSTRIAL H°A°"},{"$f":"LOOKUP(B142,Presupuesto!A$26:A$40,Presupuesto!$C$26:$C$40)","v":126.66999999999999},{"$f":"LOOKUP(B142,Presupuesto!A$26:A$637,Presupuesto!$D$26:$D$639)","v":"m³"},{"$f":"+SUMPRODUCT(G153:G154,E153:E154)","v":5855004.0749999993},{"$f":"+SUMPRODUCT(E148:E151,G148:G151)","v":3143939.9960078439},{"$f":"+SUMPRODUCT(F148:F154,G148:G154)","v":71042.425759910344}]
[]
[]
[]
[null,null,null,"un","Cantidad","Rendimiento","P.U"]
[null,null,"Materiales"]
[301,null,{"$f":"LOOKUP(A148,Materiales!$C$10:$C$337,Materiales!$D$10:$D$348)","v":"Cemento Portland"},{"$f":"LOOKUP(A148,Materiales!$C$11:$C$337,Materiales!$E$11:$E$339)","v":"bls."},{"$f":"F148*$D$142","v":760.02},6,{"$f":"LOOKUP(A148,Materiales!$C$11:$C$337,Materiales!$G$11:$G$339)","v":1603.3057851239671}]
[304,null,{"$f":"LOOKUP(A149,Materiales!$C$10:$C$337,Materiales!$D$10:$D$348)","v":"Arena mediana"},{"$f":"LOOKUP(A149,Materiales!$C$11:$C$337,Materiales!$E$11:$E$339)","v":"m³"},83.602199999999996,0.66,{"$f":"LOOKUP(A149,Materiales!$C$11:$C$337,Materiales!$G$11:$G$339)","v":3801.6528925619837}]
[308,null,{"$f":"LOOKUP(A150,Materiales!$C$10:$C$337,Materiales!$D$10:$D$348)","v":"Piedra 6/20"},{"$f":"LOOKUP(A150,Materiales!$C$11:$C$337,Materiales!$E$11:$E$339)","v":"m³"},83.602199999999996,0.66,{"$f":"LOOKUP(A150,Materiales!$C$11:$C$337,Materiales!$G$11:$G$339)","v":4297.5206611570247}]
["317-1",null,{"$f":"LOOKUP(A151,Materiales!$C$10:$C$337,Materiales!$D$10:$D$348)","v":"Hierro  Ø 8 torsionado"},{"$f":"LOOKUP(A151,Materiales!$C$11:$C$337,Materiales!$E$11:$E$339)","v":"Kg."},3800.0999999999995,30,{"$f":"LOOKUP(A151,Materiales!$C$11:$C$337,Materiales!$G$11:$G$339)","v":328.4878834570668}]
[null,null,"Mano de Obra"]
[101,null,{"$f":"LOOKUP(A153,Materiales!$C$10:$C$337,Materiales!$D$10:$D$348)","v":"Horas Oficial"},"HS",{"$f":"F153*$D$142","v":3166.7499999999995},25,{"$f":"LOOKUP(A153,Materiales!$C$11:$C$337,Materiales!$G$11:$G$339)","v":1102.5}]
[102,null,{"$f":"LOOKUP(A154,Materiales!$C$10:$C$337,Materiales!$D$10:$D$348)","v":"Horas Ayudante"},"HS",2533.3999999999996,20,{"$f":"LOOKUP(A154,Materiales!$C$11:$C$337,Materiales!$G$11:$G$339)","v":933}]
[]
[null,14,{"$f":"LOOKUP(B156,Presupuesto!A$26:A$40,Presupuesto!$B$26:$B$40)","v":"PÍNTURA AL LATEX "},{"$f":"LOOKUP(B156,Presupuesto!A$26:A$40,Presupuesto!$C$26:$C$40)","v":1097.92},{"$f":"LOOKUP(B156,Presupuesto!A$26:A$637,Presupuesto!$D$26:$D$639)","v":"m²"},{"$f":"+SUMPRODUCT(G165:G166,E165:E166)","v":268177.93920000002},{"$f":"+SUMPRODUCT(E162:E163,G162:G163)","v":326797.24905785127},{"$f":"+SUMPRODUCT(G157:G166,F157:F166)","v":541.91123966942155}]
[]
[]
[]
[null,null,null,"un","Cantidad","Rendimiento","P.U"]
[null,null,"Materiales"]
[1205,null,{"$f":"LOOKUP(A162,Materiales!$C$10:$C$337,Materiales!$D$10:$D$348)","v":"Sellador fijador"},{"$f":"LOOKUP(A162,Materiales!$C$11:$C$337,Materiales!$E$11:$E$339)","v":"lts"},{"$f":"+F162*$D$156","v":109.79200000000002},0.1,{"$f":"LOOKUP(A162,Materiales!$C$11:$C$337,Materiales!$G$11:$G$339)","v":725}]
[1216,null,{"$f":"LOOKUP(A163,Materiales!$C$10:$C$337,Materiales!$D$10:$D$348)","v":"Látex exterior blanco"},{"$f":"LOOKUP(A163,Materiales!$C$11:$C$337,Materiales!$E$11:$E$339)","v":"lts"},230.56319999999999,0.21,{"$f":"LOOKUP(A163,Materiales!$C$11:$C$337,Materiales!$G$11:$G$339)","v":1072.1487603305786}]
[null,null,"Mano de Obra"]
[101,null,{"$f":"LOOKUP(A165,Materiales!$C$10:$C$337,Materiales!$D$10:$D$348)","v":"Horas Oficial"},{"$f":"LOOKUP(A165,Materiales!$C$11:$C$337,Materiales!$E$11:$E$339)","v":"HS"},{"$f":"+F165*$D$156","v":131.75040000000001},0.12,{"$f":"LOOKUP(A165,Materiales!$C$11:$C$337,Materiales!$G$11:$G$339)","v":1102.5}]
[102,null,{"$f":"LOOKUP(A166,Materiales!$C$10:$C$337,Materiales!$D$10:$D$348)","v":"Horas Ayudante"},{"$f":"LOOKUP(A166,Materiales!$C$11:$C$337,Materiales!$E$11:$E$339)","v":"HS"},131.75040000000001,0.12,{"$f":"LOOKUP(A166,Materiales!$C$11:$C$337,Materiales!$G$11:$G$339)","v":933}]
[]
[null,15,{"$f":"LOOKUP(B168,Presupuesto!A:A,Presupuesto!B:B)","v":"CUBIERTA SOBRE ESTRUCTURA METÁLICA"},{"$f":"LOOKUP(B168,Presupuesto!A:A,Presupuesto!C:C)","v":126.66999999999999},{"$f":"LOOKUP(B168,Presupuesto!A:A,Presupuesto!D:D)","v":"m²"},{"$f":"+SUMPRODUCT(E183:E184,G183:G184)","v":327663.62249999994},{"$f":"+SUMPRODUCT(E174:E181,G174:G181)","v":445756.25331088656},{"$f":"SUMPRODUCT(F180:F184,G180:G184)+SUM(G174:G179)/D168","v":5795.4786546363584}]
[]
[null,null,"Correas: perfiles C: 80x50x15x1,60mm\nIncluye: la fabricación en obra suplementos de las cabriadas y su montaje. Elevación y montaje de cabriadas y clavadores."]
[]
[null,null,null,"un","Cantidad","Rendimiento","P.U"]
[null,null,"Materiales"]
[343,null,{"$f":"LOOKUP(A174,Materiales!$C$10:$C$337,Materiales!$D$10:$D$348)","v":"Perfil C 80x50x15x1.60mm"},{"$f":"LOOKUP(A174,Materiales!$C$10:$C$337,Materiales!E:E)","v":"Kg."},{"$f":"7.4*6/12","v":3.7000000000000006},null,{"$f":"LOOKUP(A174,Materiales!$C$11:$C$337,Materiales!$G$11:$G$339)","v":14313.338842975207}]
[331,null,{"$f":"LOOKUP(A175,Materiales!$C$10:$C$337,Materiales!$D$10:$D$348)","v":"Electrodos 2,5 mm"},{"$f":"LOOKUP(A175,Materiales!$C$10:$C$337,Materiales!E:E)","v":"Kg."},{"$f":"0.25*E174","v":0.92500000000000016},null,{"$f":"LOOKUP(A175,Materiales!$C$11:$C$337,Materiales!$G$11:$G$339)","v":1533.0578512396694}]
[1231,null,{"$f":"LOOKUP(A176,Materiales!$C$10:$C$337,Materiales!$D$10:$D$348)","v":"Convertidor de óxido"},{"$f":"LOOKUP(A176,Materiales!$C$10:$C$337,Materiales!E:E)","v":"lts"},{"$f":"0.25*E174","v":0.92500000000000016},null,{"$f":"LOOKUP(A176,Materiales!$C$11:$C$337,Materiales!$G$11:$G$339)","v":3092.5619834710747}]
[1232,null,{"$f":"LOOKUP(A177,Materiales!$C$10:$C$337,Materiales!$D$10:$D$348)","v":"Esmalte sintético 1lt"},{"$f":"LOOKUP(A177,Materiales!$C$10:$C$337,Materiales!E:E)","v":"un."},{"$f":"0.25*E174","v":0.92500000000000016},null,{"$f":"LOOKUP(A177,Materiales!$C$11:$C$337,Materiales!$G$11:$G$339)","v":2958.6776859504134}]
[1203,null,{"$f":"LOOKUP(A178,Materiales!$C$10:$C$337,Materiales!$D$10:$D$348)","v":"Tinheer"},{"$f":"LOOKUP(A178,Materiales!$C$10:$C$337,Materiales!E:E)","v":"un."},{"$f":"E177+E176","v":1.8500000000000003},null,{"$f":"LOOKUP(A178,Materiales!$C$11:$C$337,Materiales!$G$11:$G$339)","v":612.29752066115702}]
[311,null,{"$f":"LOOKUP(A179,Materiales!$C$10:$C$337,Materiales!$D$10:$D$348)","v":"Alambre Go16"},{"$f":"LOOKUP(A179,Materiales!$C$10:$C$337,Materiales!E:E)","v":"un."},{"$f":"0.5*E174","v":1.8500000000000003},null,{"$f":"LOOKUP(A179,Materiales!$C$11:$C$337,Materiales!$G$11:$G$339)","v":834.0578512396695}]
[351,null,{"$f":"LOOKUP(A180,Materiales!$C$10:$C$337,Materiales!$D$10:$D$348)","v":"Tornillos autoperforantes para techo"},{"$f":"LOOKUP(A180,Materiales!$C$10:$C$337,Materiales!E:E)","v":"un."},{"$f":"F180*$D$168","v":760.02},6,{"$f":"LOOKUP(A180,Materiales!$C$11:$C$337,Materiales!$G$11:$G$339)","v":24.793388429752067}]
[902,null,{"$f":"LOOKUP(A181,Materiales!$C$10:$C$337,Materiales!$D$10:$D$348)","v":"Chapa de cinc Acanalada Nº 27  "},{"$f":"LOOKUP(A181,Materiales!$C$10:$C$337,Materiales!E:E)","v":"un."},{"$f":"$D$168*F181","v":126.66999999999999},1,{"$f":"LOOKUP(A181,Materiales!$C$11:$C$337,Materiales!$G$11:$G$339)","v":2875.6785021936535}]
[null,null,"Mano de Obra"]
[101,null,{"$f":"LOOKUP(A183,Materiales!$C$10:$C$337,Materiales!$D$10:$D$348)","v":"Horas Oficial"},{"$f":"LOOKUP(A183,Materiales!$C$11:$C$337,Materiales!$E$11:$E$339)","v":"HS"},{"$f":"$D$168*F183","v":190.005},1.5,{"$f":"LOOKUP(A183,Materiales!$C$11:$C$337,Materiales!$G$11:$G$339)","v":1102.5}]
[102,null,{"$f":"LOOKUP(A184,Materiales!$C$10:$C$337,Materiales!$D$10:$D$348)","v":"Horas Ayudante"},{"$f":"LOOKUP(A184,Materiales!$C$11:$C$337,Materiales!$E$11:$E$339)","v":"HS"},126.66999999999999,1,{"$f":"LOOKUP(A184,Materiales!$C$11:$C$337,Materiales!$G$11:$G$339)","v":933}]
[]
[null,16,{"$f":"LOOKUP(B186,Presupuesto!A:A,Presupuesto!B:B)","v":"ZINGUERÍA"},{"$f":"LOOKUP(B186,Presupuesto!A:A,Presupuesto!C:C)","v":1},{"$f":"LOOKUP(B186,Presupuesto!A:A,Presupuesto!D:D)","v":"GL"},{"$f":"+SUMPRODUCT(E199:E200,G199:G200)","v":24633.3},{"$f":"+SUMPRODUCT(E192:E197,G192:G197)","v":59672.727272727272}]
[]
[null,null,"De chapa lisa H°G° n°27. El análisis incluye: Plegado preparado en taller según detalle de planos, traslado de materiales a tractor desde obrador hasta el pie de obra, colocación y sujeción ejecutada con tornillos parker y remaches pop, elevación y montaje de cabriadas y clavadores.\nIncluye la fabricación en obra suplementos de las cabriadas y su montaje."]
[]
[null,null,null,"un","Cantidad","Rendimiento","P.U"]
[null,null,"Materiales"]
[913,null,{"$f":"LOOKUP(A192,Materiales!$C$10:$C$337,Materiales!$D$10:$D$348)","v":"Babeta C°G° N°30 des. 25cm"},{"$f":"LOOKUP(A192,Materiales!$C$10:$C$337,Materiales!E:E)","v":"m²"},7.4,null,{"$f":"LOOKUP(A192,Materiales!$C$11:$C$337,Materiales!$G$11:$G$339)","v":768.59504132231405}]
[914,null,{"$f":"LOOKUP(A193,Materiales!$C$10:$C$337,Materiales!$D$10:$D$348)","v":"Cenefa C°G° N°30 des. 30cm"},{"$f":"LOOKUP(A193,Materiales!$C$10:$C$337,Materiales!E:E)","v":"m²"},{"$f":"4.6*2+7.4","v":16.600000000000001},null,{"$f":"LOOKUP(A193,Materiales!$C$11:$C$337,Materiales!$G$11:$G$339)","v":1570.2479338842975}]
[915,null,{"$f":"LOOKUP(A194,Materiales!$C$10:$C$337,Materiales!$D$10:$D$348)","v":"Canaleta C°G° N°25 des. 40cm"},{"$f":"LOOKUP(A194,Materiales!$C$10:$C$337,Materiales!E:E)","v":"un."},7.4,null,{"$f":"LOOKUP(A194,Materiales!$C$11:$C$337,Materiales!$G$11:$G$339)","v":2834.7107438016528}]
[916,null,{"$f":"LOOKUP(A195,Materiales!$C$10:$C$337,Materiales!$D$10:$D$348)","v":"Soporte canaleta rectangular 15cm"},{"$f":"LOOKUP(A195,Materiales!$C$10:$C$337,Materiales!E:E)","v":"un."},10,null,{"$f":"LOOKUP(A195,Materiales!$C$11:$C$337,Materiales!$G$11:$G$339)","v":495.86776859504135}]
[917,null,{"$f":"LOOKUP(A196,Materiales!$C$10:$C$337,Materiales!$D$10:$D$348)","v":"Embudo redondo Ø100mm"},{"$f":"LOOKUP(A196,Materiales!$C$10:$C$337,Materiales!E:E)","v":"un."},2,null,{"$f":"LOOKUP(A196,Materiales!$C$11:$C$337,Materiales!$G$11:$G$339)","v":991.73553719008271}]
[909,null,{"$f":"LOOKUP(A197,Materiales!$C$10:$C$337,Materiales!$D$10:$D$348)","v":"remaches pop 3,5 x 12"},{"$f":"LOOKUP(A197,Materiales!$C$10:$C$337,Materiales!E:E)","v":"un."},5,null,{"$f":"LOOKUP(A197,Materiales!$C$11:$C$337,Materiales!$G$11:$G$339)","v":0}]
[null,null,"Mano de Obra"]
[101,null,{"$f":"LOOKUP(A199,Materiales!$C$10:$C$337,Materiales!$D$10:$D$348)","v":"Horas Oficial"},{"$f":"LOOKUP(A199,Materiales!$C$11:$C$337,Materiales!$E$11:$E$339)","v":"HS"},{"$f":"F199","v":15.7},{"$f":"0.5*(SUM(E192:E194))","v":15.7},{"$f":"LOOKUP(A199,Materiales!$C$11:$C$337,Materiales!$G$11:$G$339)","v":1102.5}]
[102,null,{"$f":"LOOKUP(A200,Materiales!$C$10:$C$337,Materiales!$D$10:$D$348)","v":"Horas Ayudante"},{"$f":"LOOKUP(A200,Materiales!$C$11:$C$337,Materiales!$E$11:$E$339)","v":"HS"},7.85,{"$f":"0.25*(SUM(E192:E194))","v":7.85},{"$f":"LOOKUP(A200,Materiales!$C$11:$C$337,Materiales!$G$11:$G$339)","v":933}]
[]
[]
[]
[]
[]
[]
[]
[]
[]
[]
[]
[]
[]
[]
[]
[]
[]
[]
[]
[]
[]
[null,null,"CARPETA DE CONCRETO BAJO PISO",1,{"$f":"LOOKUP(B222,Presupuesto!A$26:A$637,Presupuesto!$D$26:$D$639)","v":{"$error":"#N/A"}},{"$f":"+SUMPRODUCT(G223:G228,F223:F228)","v":1968.442561983471},{"$f":"+SUMPRODUCT(G227:G228,E227:E228)","v":530.92499999999995},{"$f":"+SUMPRODUCT(G224:G226,F224:F226)","v":1437.5175619834711}]
[]
[301,null,{"$f":"LOOKUP(A224,Materiales!$C$10:$C$337,Materiales!$D$10:$D$348)","v":"Cemento Portland"},{"$f":"LOOKUP(A224,Materiales!$C$11:$C$337,Materiales!$E$11:$E$339)","v":"bls."},{"$f":"+F224*$D$222","v":0.25},0.25,{"$f":"LOOKUP(A224,Materiales!$C$11:$C$337,Materiales!$G$11:$G$339)","v":1603.3057851239671}]
[304,null,{"$f":"LOOKUP(A225,Materiales!$C$10:$C$337,Materiales!$D$10:$D$348)","v":"Arena mediana"},{"$f":"LOOKUP(A225,Materiales!$C$11:$C$337,Materiales!$E$11:$E$339)","v":"m³"},0.25,0.25,{"$f":"LOOKUP(A225,Materiales!$C$11:$C$337,Materiales!$G$11:$G$339)","v":3801.6528925619837}]
[318.10000000000002,null,{"$f":"LOOKUP(A226,Materiales!$C$10:$C$337,Materiales!$D$10:$D$348)","v":"Hierro  Ø 12 torsionado"},{"$f":"LOOKUP(A226,Materiales!$C$11:$C$337,Materiales!$E$11:$E$339)","v":"brs."},2.5000000000000001E-2,2.5000000000000001E-2,{"$f":"LOOKUP(A226,Materiales!$C$11:$C$337,Materiales!$G$11:$G$339)","v":3451.1157024793392}]
[101,null,"HORAS OFICIAL",{"$f":"LOOKUP(A227,Materiales!$C$11:$C$337,Materiales!$E$11:$E$339)","v":"HS"},0.27,0.27,{"$f":"LOOKUP(A227,Materiales!$C$11:$C$337,Materiales!$G$11:$G$339)","v":1102.5}]
[102,null,"HORAS AYUDANTE",{"$f":"LOOKUP(A228,Materiales!$C$11:$C$337,Materiales!$E$11:$E$339)","v":"HS"},0.25,0.25,{"$f":"LOOKUP(A228,Materiales!$C$11:$C$337,Materiales!$G$11:$G$339)","v":933}]
[]
[null,null,"PISO CERÁMICO",1,{"$f":"LOOKUP(B230,Presupuesto!A$26:A$637,Presupuesto!$D$26:$D$639)","v":{"$error":"#N/A"}},{"$f":"+SUMPRODUCT(G231:G235,F231:F235)","v":4316.2388429752064},{"$f":"+SUMPRODUCT(G234:G235,E234:E235)","v":720.9},{"$f":"+SUMPRODUCT(G232:G233,F232:F233)","v":3595.3388429752067}]
[]
[1002,null,{"$f":"LOOKUP(A232,Materiales!$C$10:$C$337,Materiales!$D$10:$D$348)","v":"Adhesivo para ceramica por 30 kls."},{"$f":"LOOKUP(A232,Materiales!$C$11:$C$337,Materiales!$E$11:$E$339)","v":"bls."},{"$f":"+F232*$D$230","v":9.5000000000000001E-2},9.5000000000000001E-2,{"$f":"LOOKUP(A232,Materiales!$C$11:$C$337,Materiales!$G$11:$G$339)","v":3047.9338842975208}]
[1004,null,{"$f":"LOOKUP(A233,Materiales!$C$10:$C$337,Materiales!$D$10:$D$348)","v":"Porcelanato 60x60 pulido"},{"$f":"LOOKUP(A233,Materiales!$C$11:$C$337,Materiales!$E$11:$E$339)","v":"m²"},1,1,{"$f":"LOOKUP(A233,Materiales!$C$11:$C$337,Materiales!$G$11:$G$339)","v":3305.7851239669421}]
[101,null,"HORAS OFICIAL",{"$f":"LOOKUP(A234,Materiales!$C$11:$C$337,Materiales!$E$11:$E$339)","v":"HS"},{"$f":"+F234*$D$222","v":0.4},0.4,{"$f":"LOOKUP(A234,Materiales!$C$11:$C$337,Materiales!$G$11:$G$339)","v":1102.5}]
[102,null,"HORAS AYUDANTE",{"$f":"LOOKUP(A235,Materiales!$C$11:$C$337,Materiales!$E$11:$E$339)","v":"HS"},0.3,0.3,{"$f":"LOOKUP(A235,Materiales!$C$11:$C$337,Materiales!$G$11:$G$339)","v":933}]

{"sheet":"Materiales","index":4,"n_rows":351,"n_cols":13,"rows_kept":351,"cut":false,"hidden":false,"merged":[[4,3,4,6],[6,3,7,6],[2,3,2,7],[0,3,0,6]]}
[null,null,null,"OBRA:\tSala Tableros\nUBICACIÓN:\tCampo Grande, Misiones\nCOMITENTE:\tCASA FUENTES - FINLAYS\nREFERENCIA:\tT28",null,null,null,{"$f":"NOW()","v":"2023-03-29T09:41:45.630"}]
[]
[null,null,null,"LISTADO DE MATERIALES NECESARIOS PARA EJECUCION DE LA OBRA"]
[]
[null,null,null,"TIEMPO ESTIMADO DE TRABAJO",null,null,null,{"$f":"+F11+F12+220","v":10374.3135}]
[]
[null,null,null,"PLAZO TOTAL DE OBRA ESTIMADO CUADRILLA: 2 Oficiales+2 Ayudantes",null,null,null,{"$f":"+(H5/8/I8)","v":324.19729687500001}]
[null,null,null,null,null,null,null,{"$f":"+H5/I8/8/20","v":16.209864843750001},4,"personas",null,"IVA",1.21]
[]
[null,null,null,"Elemento","un","CANTIDAD","COSTO UNITARIO","COSTO SUBTOTAL"]
[1,"MANO DE OBRA",101,"Horas Oficial","HS",{"$f":"SUMIF('Análisis de Precios'!A:A,C11,'Análisis de Precios'!E:E)","v":5205.6877999999997},{"$f":"1.5*735","v":1102.5},{"$f":"+G11*F11","v":5739270.7994999997}]
[null,null,102,"Horas Ayudante","HS",{"$f":"SUMIF('Análisis de Precios'!A:A,C12,'Análisis de Precios'!E:E)","v":4948.6257000000005},{"$f":"1.5*622","v":933},4617067.7781000007]
[null,null,103,"HORAS RETRO","HS",{"$f":"SUMIF('Análisis de Precios'!A:A,C13,'Análisis de Precios'!E:E)","v":0},null,0]
[null,null,104,"HORAS CAMIÓN","HS",{"$f":"SUMIF('Análisis de Precios'!A:A,C14,'Análisis de Precios'!E:E)","v":0},null,0]
[3,"VARIOS",301,"Cemento Portland","bls.",{"$f":"SUMIF('Análisis de Precios'!A:A,C15,'Análisis de Precios'!E:E)","v":1129.37736},{"$f":"1940/$M$8","v":1603.3057851239671},1810737.2548760332]
[null,null,302,"Cal hidratada","bls.",{"$f":"SUMIF('Análisis de Precios'!A:A,C16,'Análisis de Precios'!E:E)","v":702.66880000000003},{"$f":"1426.25/$M$8","v":1178.7190082644629},828249.07107438031]
[null,null,302.10000000000002,"Mortero preparado para revoque fino","bls.",{"$f":"SUMIF('Análisis de Precios'!A:A,C17,'Análisis de Precios'!E:E)","v":0},{"$f":"2456.8/$M$8","v":2030.413223140496},0]
[null,null,303,"Cemento de albañilería","bls.",{"$f":"SUMIF('Análisis de Precios'!A:A,C18,'Análisis de Precios'!E:E)","v":87.833600000000004},{"$f":"1940/$M$8","v":1603.3057851239671},140824.11900826448]
[null,null,304,"Arena mediana","m³",{"$f":"SUMIF('Análisis de Precios'!A:A,C19,'Análisis de Precios'!E:E)","v":564.01305760000014},{"$f":"4600/$M$8","v":3801.6528925619837},2144181.8718677694]
[null,null,305,"arena gruesa","m³",{"$f":"SUMIF('Análisis de Precios'!A:A,C20,'Análisis de Precios'!E:E)","v":0},null,0]
[null,null,306,"hormigón elaborado H 17","m³",{"$f":"SUMIF('Análisis de Precios'!A:A,C21,'Análisis de Precios'!E:E)","v":0},null,0]
[null,null,307,"hormigón elaborado H 4","m³",{"$f":"SUMIF('Análisis de Precios'!A:A,C22,'Análisis de Precios'!E:E)","v":0},null,0]
[null,null,307.10000000000002,"Vigueton premoldeado vipret clase V2 largo 4,2 mts","un.",{"$f":"SUMIF('Análisis de Precios'!A:A,C23,'Análisis de Precios'!E:E)","v":0},null,0]
[null,null,307.2,"Vigueta pretensada","m",{"$f":"SUMIF('Análisis de Precios'!A:A,C24,'Análisis de Precios'!E:E)","v":0},null,0]
[null,null,307.3,"ladrillo telgopor 12 42 100","un.",{"$f":"SUMIF('Análisis de Precios'!A:A,C25,'Análisis de Precios'!E:E)","v":0},null,0]
[null,null,308,"Piedra 6/20","m³",{"$f":"SUMIF('Análisis de Precios'!A:A,C26,'Análisis de Precios'!E:E)","v":95.683737600000001},{"$f":"5200/$M$8","v":4297.5206611570247},411202.83927272726]
[null,null,309,"piedra tipo balastron","m³",{"$f":"SUMIF('Análisis de Precios'!A:A,C27,'Análisis de Precios'!E:E)","v":0},null,0]
[null,null,309.10000000000002,"PIEDRA VOLADA COMÚN","Tn",{"$f":"SUMIF('Análisis de Precios'!A:A,C28,'Análisis de Precios'!E:E)","v":0},null,0]
[null,null,309.2,"PIEDRA VOLADA ELEGIDA PARA MURO","Tn",{"$f":"SUMIF('Análisis de Precios'!A:A,C29,'Análisis de Precios'!E:E)","v":0},null,0]
[null,null,310,"Hidrófugo","Kg.",{"$f":"SUMIF('Análisis de Precios'!A:A,C30,'Análisis de Precios'!E:E)","v":8.39208},{"$f":"36242/(200*$M$8)","v":149.7603305785124},1256.8006750413224]
[null,null,310.10000000000002,"Weber.tec con ceresita ","bsa.",{"$f":"SUMIF('Análisis de Precios'!A:A,C31,'Análisis de Precios'!E:E)","v":0},{"$f":"4985/$M$8","v":4119.8347107438021},0]
[null,null,311,"Alambre Go16","Kg.",{"$f":"SUMIF('Análisis de Precios'!A:A,C32,'Análisis de Precios'!E:E)","v":1.8500000000000003},{"$f":"1009.21/$M$8","v":834.0578512396695},1543.0070247933888]
[null,null,312,"alambre negro N° 16","Kg.",{"$f":"SUMIF('Análisis de Precios'!A:A,C33,'Análisis de Precios'!E:E)","v":0},null,0]
[null,null,313,"alambre negro nº 9","Kg.",{"$f":"SUMIF('Análisis de Precios'!A:A,C34,'Análisis de Precios'!E:E)","v":0},null,0]
[null,null,314,"alambre de púa x 500 mts.","rollo",{"$f":"SUMIF('Análisis de Precios'!A:A,C35,'Análisis de Precios'!E:E)","v":0},null,0]
[null,null,315,"hierro Ø 4,2 torsionado","brs.",{"$f":"SUMIF('Análisis de Precios'!A:A,C36,'Análisis de Precios'!E:E)","v":0},null,0]
[null,null,316,"Hierro Ø 6 torsionado","brs.",{"$f":"SUMIF('Análisis de Precios'!A:A,C37,'Análisis de Precios'!E:E)","v":14.099000000000002},{"$f":"1139.68/$M$8","v":941.88429752066122},13279.626710743805]
[null,null,317,"hierro  Ø 8 torsionado","brs.",{"$f":"SUMIF('Análisis de Precios'!A:A,C38,'Análisis de Precios'!E:E)","v":0},null,0]
[null,null,318,"hierro  Ø 10 torsionado","brs.",{"$f":"SUMIF('Análisis de Precios'!A:A,C39,'Análisis de Precios'!E:E)","v":0},null,0]
[null,null,318.10000000000002,"Hierro  Ø 12 torsionado","brs.",{"$f":"SUMIF('Análisis de Precios'!A:A,C40,'Análisis de Precios'!E:E)","v":2.5000000000000001E-2},{"$f":"4175.85/$M$8","v":3451.1157024793392},86.277892561983492]
[null,null,318.2,"hierro  Ø 16 torsionado","brs.",{"$f":"SUMIF('Análisis de Precios'!A:A,C41,'Análisis de Precios'!E:E)","v":0},null,0]
[null,null,318.3,"hierro  Ø 20 torsionado","brs.",{"$f":"SUMIF('Análisis de Precios'!A:A,C42,'Análisis de Precios'!E:E)","v":0},null,0]
[null,null,318.39999999999998,"hierro  Ø 25 torsionado","brs.",{"$f":"SUMIF('Análisis de Precios'!A:A,C43,'Análisis de Precios'!E:E)","v":0},null,0]
[null,null,318.5,"malla sima 150x150x6 mm","un.",{"$f":"SUMIF('Análisis de Precios'!A:A,C44,'Análisis de Precios'!E:E)","v":0},null,0]
[null,null,319,"hierro liso Ø 8","brs.",{"$f":"SUMIF('Análisis de Precios'!A:A,C45,'Análisis de Precios'!E:E)","v":0},null,0]
[null,null,320,"hierro liso Ø 12","brs.",{"$f":"SUMIF('Análisis de Precios'!A:A,C46,'Análisis de Precios'!E:E)","v":0},null,0]
[null,null,"316-1","Hierro Ø 6 torsionado","Kg.",{"$f":"SUMIF('Análisis de Precios'!A:A,C47,'Análisis de Precios'!E:E)","v":18.921599999999998},{"$f":"1139.68/(2.64*$M$8)","v":356.77435512146258},6750.7416378662656]
[null,null,"317-1","Hierro  Ø 8 torsionado","Kg.",{"$f":"SUMIF('Análisis de Precios'!A:A,C48,'Análisis de Precios'!E:E)","v":3800.0999999999995},{"$f":"1876.06/(4.72*$M$8)","v":328.4878834570668},1248286.8059251993]
[null,null,null,null,null,{"$f":"SUMIF('Análisis de Precios'!A:A,C49,'Análisis de Precios'!E:E)","v":0}]
[null,null,null,null,null,{"$f":"SUMIF('Análisis de Precios'!A:A,C50,'Análisis de Precios'!E:E)","v":0}]
[null,null,null,null,null,{"$f":"SUMIF('Análisis de Precios'!A:A,C51,'Análisis de Precios'!E:E)","v":0}]
[null,null,null,null,null,{"$f":"SUMIF('Análisis de Precios'!A:A,C52,'Análisis de Precios'!E:E)","v":0}]
[null,null,null,null,null,{"$f":"SUMIF('Análisis de Precios'!A:A,C53,'Análisis de Precios'!E:E)","v":0}]
[null,null,null,null,null,{"$f":"SUMIF('Análisis de Precios'!A:A,C54,'Análisis de Precios'!E:E)","v":0}]
[null,null,null,null,null,{"$f":"SUMIF('Análisis de Precios'!A:A,C55,'Análisis de Precios'!E:E)","v":0}]
[null,null,null,null,null,{"$f":"SUMIF('Análisis de Precios'!A:A,C56,'Análisis de Precios'!E:E)","v":0}]
[null,null,321,"clavos pp 1\"","Kg.",{"$f":"SUMIF('Análisis de Precios'!A:A,C57,'Análisis de Precios'!E:E)","v":0},null,{"$f":"+G57*F57","v":0}]
[null,null,322,"clavos pp 2\"","Kg.",{"$f":"SUMIF('Análisis de Precios'!A:A,C58,'Análisis de Precios'!E:E)","v":0},null,0]
[null,null,323,"clavos pp 2 1/2\"","Kg.",{"$f":"SUMIF('Análisis de Precios'!A:A,C59,'Análisis de Precios'!E:E)","v":0},null,0]
[null,null,324,"clavos pp 3\"","Kg.",{"$f":"SUMIF('Análisis de Precios'!A:A,C60,'Análisis de Precios'!E:E)","v":0},null,0]
[null,null,325,"clavos pp 4\"","Kg.",{"$f":"SUMIF('Análisis de Precios'!A:A,C61,'Análisis de Precios'!E:E)","v":0},null,0]
[null,null,326,"clavos 10/30","Kg.",{"$f":"SUMIF('Análisis de Precios'!A:A,C62,'Análisis de Precios'!E:E)","v":0},null,0]
[null,null,327,"clavos 12/40","Kg.",{"$f":"SUMIF('Análisis de Precios'!A:A,C63,'Análisis de Precios'!E:E)","v":0},null,0]
[null,null,328,"clavos CP 3\"","un.",{"$f":"SUMIF('Análisis de Precios'!A:A,C64,'Análisis de Precios'!E:E)","v":0},null,0]
[null,null,329,"Chapa sinusoidal N° 25 x 5","m²",{"$f":"SUMIF('Análisis de Precios'!A:A,C65,'Análisis de Precios'!E:E)","v":0},null,0]
[null,null,329.1,"Membrana TBA 10 mm","rollo",{"$f":"SUMIF('Análisis de Precios'!A:A,C66,'Análisis de Precios'!E:E)","v":0},null,0,null,null,null,{"$f":"2500/20","v":125}]
[null,null,330,"chapa lisa n° 18","m²",{"$f":"SUMIF('Análisis de Precios'!A:A,C67,'Análisis de Precios'!E:E)","v":0},null,0]
[null,null,331,"Electrodos 2,5 mm","Kg.",{"$f":"SUMIF('Análisis de Precios'!A:A,C68,'Análisis de Precios'!E:E)","v":0.92500000000000016},{"$f":"9275/(5*$M$8)","v":1533.0578512396694},1418.0785123966944]
[null,null,332,"plantines de pasto","un.",{"$f":"SUMIF('Análisis de Precios'!A:A,C69,'Análisis de Precios'!E:E)","v":0},null,0]
[null,null,341,"perfil C 120 50 15 e 2","un.",{"$f":"SUMIF('Análisis de Precios'!A:A,C70,'Análisis de Precios'!E:E)","v":0},null,0]
[null,null,342,"perfil C 100 50 15 e2","un.",{"$f":"SUMIF('Análisis de Precios'!A:A,C71,'Análisis de Precios'!E:E)","v":0},null,0]
[null,null,343,"Perfil C 80x50x15x1.60mm","un.",{"$f":"SUMIF('Análisis de Precios'!A:A,C72,'Análisis de Precios'!E:E)","v":3.7000000000000006},{"$f":"17319.14/$M$8","v":14313.338842975207},52959.353719008272]
[null,null,351,"Tornillos autoperforantes para techo","un.",{"$f":"SUMIF('Análisis de Precios'!A:A,C73,'Análisis de Precios'!E:E)","v":760.02},{"$f":"3000/(100*$M$8)","v":24.793388429752067},18843.471074380166]
[null,null,352,"tornillos autoperforantes para cumbrera","un.",{"$f":"SUMIF('Análisis de Precios'!A:A,C74,'Análisis de Precios'!E:E)","v":0},null,0]
[null,null,353,"tornillos autoperforantes para zingueria","un.",{"$f":"SUMIF('Análisis de Precios'!A:A,C75,'Análisis de Precios'!E:E)","v":0},null,0]
[4,"LADRILLOS",401,"ladrillos comunes","un.",{"$f":"SUMIF('Análisis de Precios'!A:A,C76,'Análisis de Precios'!E:E)","v":0},null,0]
[null,null,402,"ladrillos portantes 18 x 18 x 25","un.",{"$f":"SUMIF('Análisis de Precios'!A:A,C77,'Análisis de Precios'!E:E)","v":0},null,0]
[null,null,403,"Ladrillos livianos 18 x 18 x 25","un.",{"$f":"SUMIF('Análisis de Precios'!A:A,C78,'Análisis de Precios'!E:E)","v":11748.912},{"$f":"121/$M$8","v":100},1174891.2]
[null,null,404,"ladrillos 12 x 18 x 25","un.",{"$f":"SUMIF('Análisis de Precios'!A:A,C79,'Análisis de Precios'!E:E)","v":0},null,0]
[null,null,405,"ladrillos 8 x 18 x 25","un.",{"$f":"SUMIF('Análisis de Precios'!A:A,C80,'Análisis de Precios'!E:E)","v":0},null,0]
[null,null,406,"ladrillos peines ceramicos 18 x 18 x 25","un.",{"$f":"SUMIF('Análisis de Precios'!A:A,C81,'Análisis de Precios'!E:E)","v":0},null,0]
[null,null,407,"Ladrillos block de Hormigon","un.",{"$f":"SUMIF('Análisis de Precios'!A:A,C82,'Análisis de Precios'!E:E)","v":0},null,0]
[5,"MADERAS Y CABRIADAS ",501,"tablas de 1x4 mad. pino","mts.",{"$f":"SUMIF('Análisis de Precios'!A:A,C83,'Análisis de Precios'!E:E)","v":0},null,0]
[null,null,502,"clavadores  2\"x2\" mad. Semidura","mts.",{"$f":"SUMIF('Análisis de Precios'!A:A,C84,'Análisis de Precios'!E:E)","v":0},null,0]
[null,null,502.1,"tirantes semidura de descarte (estacas)","mts.",{"$f":"SUMIF('Análisis de Precios'!A:A,C85,'Análisis de Precios'!E:E)","v":0},null,0,null,null,null,{"$f":"164*0.15","v":24.599999999999998}]
[null,null,503,"machimbre 1/2\" x 4\"","m²",{"$f":"SUMIF('Análisis de Precios'!A:A,C86,'Análisis de Precios'!E:E)","v":0},null,0]
[null,null,504,"cornizas de pino","mts.",{"$f":"SUMIF('Análisis de Precios'!A:A,C87,'Análisis de Precios'!E:E)","v":0},null,0]
[null,null,505,"tirante de pino 2\" x 1\"","mts.",{"$f":"SUMIF('Análisis de Precios'!A:A,C88,'Análisis de Precios'!E:E)","v":0},null,0]
[null,null,505.1,"madera de descarte de pino (costaneros)","mts.",{"$f":"SUMIF('Análisis de Precios'!A:A,C89,'Análisis de Precios'!E:E)","v":0},null,0]
[null,null,505.2,"tirante de pino 2\" x 2\"","mts.",{"$f":"SUMIF('Análisis de Precios'!A:A,C90,'Análisis de Precios'!E:E)","v":0},null,0]
[null,null,506,"tablas de 1x 4 mad. Semidura","mts.",{"$f":"SUMIF('Análisis de Precios'!A:A,C91,'Análisis de Precios'!E:E)","v":0},null,0]
[null,null,507,"tablas de 1x 6 mad. Semidura","mts.",{"$f":"SUMIF('Análisis de Precios'!A:A,C92,'Análisis de Precios'!E:E)","v":0},null,0]
[null,null,510,"postes de madera dura 3\" x 3\" alt media 1,8 mts","un.",{"$f":"SUMIF('Análisis de Precios'!A:A,C93,'Análisis de Precios'!E:E)","v":0},null,0]
[6,"CARPINTERIAS",601,"Puerta de Acceso met. frente 0,90 x 2,00     P1","un.",{"$f":"SUMIF('Análisis de Precios'!A:A,C94,'Análisis de Precios'!E:E)","v":0},null,0]
[null,null,602,"Puerta de dormitorio     0,80 x 2,00                P3                  ","un.",{"$f":"SUMIF('Análisis de Precios'!A:A,C95,'Análisis de Precios'!E:E)","v":0},null,0]
[null,null,603,"Puerta de baño               0,7x 2,00                   P4","un.",{"$f":"SUMIF('Análisis de Precios'!A:A,C96,'Análisis de Precios'!E:E)","v":0},null,0]
[null,null,604,"Puerta de lavadero        0,9 x 2,00                   P2","un.",{"$f":"SUMIF('Análisis de Precios'!A:A,C97,'Análisis de Precios'!E:E)","v":0},null,0]
[null,null,605,"Ventana de estar V1      1,00x1,20                  V2","un.",{"$f":"SUMIF('Análisis de Precios'!A:A,C98,'Análisis de Precios'!E:E)","v":0},null,0]
[null,null,606,"Ventana de dormitorio  1,00 x 1,00                 V1","un.",{"$f":"SUMIF('Análisis de Precios'!A:A,C99,'Análisis de Precios'!E:E)","v":0},null,0]
[null,null,607,"Ventiluz de baño             0,60 x 0,45                V4","un.",{"$f":"SUMIF('Análisis de Precios'!A:A,C100,'Análisis de Precios'!E:E)","v":0},null,0]
[null,null,608,"Ventana de cocina         0,45x0,60                   V3","un.",{"$f":"SUMIF('Análisis de Precios'!A:A,C101,'Análisis de Precios'!E:E)","v":0},null,0]
[null,null,608.5,"ventana de pasillo   0,45 x 0,60                       V5","un.",{"$f":"SUMIF('Análisis de Precios'!A:A,C102,'Análisis de Precios'!E:E)","v":0},null,0]
[null,null,609,"puertas placas P3","un.",{"$f":"SUMIF('Análisis de Precios'!A:A,C103,'Análisis de Precios'!E:E)","v":0},null,0]
[null,null,610,"puertas placas P2","un.",{"$f":"SUMIF('Análisis de Precios'!A:A,C104,'Análisis de Precios'!E:E)","v":0},null,0]
[null,null,611,"tornillos tirafondo 18 x 25","un.",{"$f":"SUMIF('Análisis de Precios'!A:A,C105,'Análisis de Precios'!E:E)","v":0},null,0]
[null,null,612,"tornillos tirafondo 13 x 17","un.",{"$f":"SUMIF('Análisis de Precios'!A:A,C106,'Análisis de Precios'!E:E)","v":0},null,0]
[null,null,613,"pomelas hembra","un.",{"$f":"SUMIF('Análisis de Precios'!A:A,C107,'Análisis de Precios'!E:E)","v":0},null,0]
[null,null,614,"cerradura comun","un.",{"$f":"SUMIF('Análisis de Precios'!A:A,C108,'Análisis de Precios'!E:E)","v":0},null,0]
[null,null,615,"cerradura p/ exterior doble paleta","un.",{"$f":"SUMIF('Análisis de Precios'!A:A,C109,'Análisis de Precios'!E:E)","v":0},null,0]
[null,null,616,"picaporte de aluminio tipo ministerio","un.",{"$f":"SUMIF('Análisis de Precios'!A:A,C110,'Análisis de Precios'!E:E)","v":0},null,0]
[null,null,617,"picaporte biselado para puertas de exterior","un.",{"$f":"SUMIF('Análisis de Precios'!A:A,C111,'Análisis de Precios'!E:E)","v":0},null,0]
[null,null,618,"Puerta aluminio blanco 1,00mx2,10m","un.",{"$f":"SUMIF('Análisis de Precios'!A:A,C112,'Análisis de Precios'!E:E)","v":15},{"$f":"98131.68/(0.85*$M$8)","v":95412.425862907141},1431186.3879436071]
[7,"INSTALACION ELECTRICA",701,"caño de pvc  Ø  3/4\" x 3 mts","un.",{"$f":"SUMIF('Análisis de Precios'!A:A,C113,'Análisis de Precios'!E:E)","v":0},null,0]
[null,null,702,"Conector de hierro 26mm 1\"","un.",{"$f":"SUMIF('Análisis de Precios'!A:A,C114,'Análisis de Precios'!E:E)","v":0},null,0]
[null,null,703,"Caño plast.corr.pes.26mm 1\"","mts.",{"$f":"SUMIF('Análisis de Precios'!A:A,C115,'Análisis de Precios'!E:E)","v":0},null,0]
[null,null,704,"conector  3/4\"","un.",{"$f":"SUMIF('Análisis de Precios'!A:A,C116,'Análisis de Precios'!E:E)","v":0},null,0]
[null,null,705,"curva de pvc Ø 3/4\"","un.",{"$f":"SUMIF('Análisis de Precios'!A:A,C117,'Análisis de Precios'!E:E)","v":0},null,0]
[null,null,706,"curva de pvc Ø 1\"","un.",{"$f":"SUMIF('Análisis de Precios'!A:A,C118,'Análisis de Precios'!E:E)","v":0},null,0]
[null,null,707,"cupla de pvc 3/4\"","un.",{"$f":"SUMIF('Análisis de Precios'!A:A,C119,'Análisis de Precios'!E:E)","v":0},null,0]
[null,null,708,"caja octogonal","un.",{"$f":"SUMIF('Análisis de Precios'!A:A,C120,'Análisis de Precios'!E:E)","v":0},null,0]
[null,null,709,"caja met. 5 x10","un.",{"$f":"SUMIF('Análisis de Precios'!A:A,C121,'Análisis de Precios'!E:E)","v":0},null,0]
[null,null,710,"caja met.  10 x10","un.",{"$f":"SUMIF('Análisis de Precios'!A:A,C122,'Análisis de Precios'!E:E)","v":0},null,0]
[null,null,711,"caja p/ alojar dos termicas ","un.",{"$f":"SUMIF('Análisis de Precios'!A:A,C123,'Análisis de Precios'!E:E)","v":0},null,0]
[null,null,712,"LLAVE TERMICA 1 x 15 A","un.",{"$f":"SUMIF('Análisis de Precios'!A:A,C124,'Análisis de Precios'!E:E)","v":0},null,0]
[null,null,713,"LLAVE TERMICA 1 x 20 A","un.",{"$f":"SUMIF('Análisis de Precios'!A:A,C125,'Análisis de Precios'!E:E)","v":0},null,0]
[null,null,714,"LLAVE TERMICA 2 x 25 A","un.",{"$f":"SUMIF('Análisis de Precios'!A:A,C126,'Análisis de Precios'!E:E)","v":0},null,0]
[null,null,715,"jabalina H°G° 3/8\" x 1m","un.",{"$f":"SUMIF('Análisis de Precios'!A:A,C127,'Análisis de Precios'!E:E)","v":0},null,0]
[null,null,716,"Caño Pilar liv. Go. 1 1/2\"","mts.",{"$f":"SUMIF('Análisis de Precios'!A:A,C128,'Análisis de Precios'!E:E)","v":0},null,0]
[null,null,717,"Pipeta bakelita 11/2\"","un.",{"$f":"SUMIF('Análisis de Precios'!A:A,C129,'Análisis de Precios'!E:E)","v":0},null,0]
[null,null,718,"cable verde amarillo 1,5 MM","mts.",{"$f":"SUMIF('Análisis de Precios'!A:A,C130,'Análisis de Precios'!E:E)","v":0},null,0]
[null,null,719,"cable  unipolar 1 x 4 MM","mts.",{"$f":"SUMIF('Análisis de Precios'!A:A,C131,'Análisis de Precios'!E:E)","v":0},null,0]
[null,null,720,"cable Cu desnudo 7 x 0,80","mts.",{"$f":"SUMIF('Análisis de Precios'!A:A,C132,'Análisis de Precios'!E:E)","v":0},null,0]
[null,null,721,"cable unipolar 2,5 MM","mts.",{"$f":"SUMIF('Análisis de Precios'!A:A,C133,'Análisis de Precios'!E:E)","v":0},null,0]
[null,null,722,"cable unipolar 1,5 MM","mts.",{"$f":"SUMIF('Análisis de Precios'!A:A,C134,'Análisis de Precios'!E:E)","v":0},null,0]
[null,null,723,"cinta aisladora x 20 mts","mts.",{"$f":"SUMIF('Análisis de Precios'!A:A,C135,'Análisis de Precios'!E:E)","v":0},null,0]
[null,null,724,"LLAVE DE UN PUNTO","un.",{"$f":"SUMIF('Análisis de Precios'!A:A,C136,'Análisis de Precios'!E:E)","v":0},null,0]
[null,null,725,"LLAVE DE DOS PUNTOS Y TOMA","un.",{"$f":"SUMIF('Análisis de Precios'!A:A,C137,'Análisis de Precios'!E:E)","v":0},null,0]
[null,null,726,"LLAVE DE UN PUNTO Y TOMA C/ NEUTRO","un.",{"$f":"SUMIF('Análisis de Precios'!A:A,C138,'Análisis de Precios'!E:E)","v":0},null,0]
[null,null,727,"TOMA C/ NEUTRO","un.",{"$f":"SUMIF('Análisis de Precios'!A:A,C139,'Análisis de Precios'!E:E)","v":0},null,0]
[null,null,728,"RECEPTACULO CURVO C/ROSETA","un.",{"$f":"SUMIF('Análisis de Precios'!A:A,C140,'Análisis de Precios'!E:E)","v":0},null,0]
[null,null,729,"PORTALAMPARA DE COLGAR COMUN","un.",{"$f":"SUMIF('Análisis de Precios'!A:A,C141,'Análisis de Precios'!E:E)","v":0},null,0]
[null,null,730,"FLORON DE UREA","un.",{"$f":"SUMIF('Análisis de Precios'!A:A,C142,'Análisis de Precios'!E:E)","v":0},null,0]
[null,null,731,"tapa ciega pvc 10 x 10","un.",{"$f":"SUMIF('Análisis de Precios'!A:A,C143,'Análisis de Precios'!E:E)","v":0},null,0]
[null,null,732,"tapa ciega pvc 5 x 10","un.",{"$f":"SUMIF('Análisis de Precios'!A:A,C144,'Análisis de Precios'!E:E)","v":0},null,0]
[null,null,733,"ROSETA DE MADERA","un.",{"$f":"SUMIF('Análisis de Precios'!A:A,C145,'Análisis de Precios'!E:E)","v":0},null,0]
[null,null,734,"TORNILLOS PARA ROSETA","un.",{"$f":"SUMIF('Análisis de Precios'!A:A,C146,'Análisis de Precios'!E:E)","v":0},null,0]
[null,null,735,"caja metalica para medidor","un.",{"$f":"SUMIF('Análisis de Precios'!A:A,C147,'Análisis de Precios'!E:E)","v":0},null,0]
[null,null,736,"caja metalica para termomagnetica bipolar","un.",{"$f":"SUMIF('Análisis de Precios'!A:A,C148,'Análisis de Precios'!E:E)","v":0},null,0]
[null,null,737,"Cond. subterraneo 2x 6mm2","mts.",{"$f":"SUMIF('Análisis de Precios'!A:A,C149,'Análisis de Precios'!E:E)","v":0},null,0]
[null,null,738,"cable  unipolar 1 x 6 MM","mts.",{"$f":"SUMIF('Análisis de Precios'!A:A,C150,'Análisis de Precios'!E:E)","v":0},null,0]
[8,"PREMOLDEADOS",801,"Camara de inspeccion premoldeada H° A° ","un.",{"$f":"SUMIF('Análisis de Precios'!A:A,C151,'Análisis de Precios'!E:E)","v":0},null,0]
[null,null,802,"PILETA PREMOLDEADA 48 x 54 CM","un.",{"$f":"SUMIF('Análisis de Precios'!A:A,C152,'Análisis de Precios'!E:E)","v":0},null,0]
[null,null,803,"MESADA PREMOLDEADA DE HORMIGON ARMADO","un.",{"$f":"SUMIF('Análisis de Precios'!A:A,C153,'Análisis de Precios'!E:E)","v":0},null,0]
[9,"TECHOS Y ESTRUCTURA",901,"chapa de cinc ACANALADA nº 25","un.",{"$f":"SUMIF('Análisis de Precios'!A:A,C154,'Análisis de Precios'!E:E)","v":0},null,0]
[null,null,902,"Chapa de cinc Acanalada Nº 27  ","m²",{"$f":"SUMIF('Análisis de Precios'!A:A,C155,'Análisis de Precios'!E:E)","v":126.66999999999999},{"$f":"11273.81/(1.08*3*$M$8)","v":2875.6785021936535},364262.19587287004]
[null,null,903,"PLEGADO DE CHAPA F°G° TIPO CENEFA","m²",{"$f":"SUMIF('Análisis de Precios'!A:A,C156,'Análisis de Precios'!E:E)","v":0},null,0]
[null,null,904,"chapa plegada de HºG° (cupertina )","m²",{"$f":"SUMIF('Análisis de Precios'!A:A,C157,'Análisis de Precios'!E:E)","v":0},null,0]
[null,null,904.1,"chapa plegada de HºG° (cupertina posterior tipo cumbrera )","m²",{"$f":"SUMIF('Análisis de Precios'!A:A,C158,'Análisis de Precios'!E:E)","v":0},null,0]
[null,null,905,"cumbrera de ch. de cinc nº27x 2m.  L=33","m²",{"$f":"SUMIF('Análisis de Precios'!A:A,C159,'Análisis de Precios'!E:E)","v":0},null,0]
[null,null,906,"TORNILLOS PARKER 8 x 25 MM","un.",{"$f":"SUMIF('Análisis de Precios'!A:A,C160,'Análisis de Precios'!E:E)","v":0},null,0]
[null,null,907,"tornillos parker 8 x 38 MM","un.",{"$f":"SUMIF('Análisis de Precios'!A:A,C161,'Análisis de Precios'!E:E)","v":0},null,0]
[null,null,908,"tarugos fischer s8","un.",{"$f":"SUMIF('Análisis de Precios'!A:A,C162,'Análisis de Precios'!E:E)","v":0},null,0]
[null,null,909,"remaches pop 3,5 x 12","un.",{"$f":"SUMIF('Análisis de Precios'!A:A,C163,'Análisis de Precios'!E:E)","v":5},null,0]
[null,null,910,"metal desplegado liviano  2m x 0,75m","un.",{"$f":"SUMIF('Análisis de Precios'!A:A,C164,'Análisis de Precios'!E:E)","v":0},null,0]
[null,null,911,"Aislamax membrana b/teja espuma simple 5mm 20m2","m²",{"$f":"SUMIF('Análisis de Precios'!A:A,C165,'Análisis de Precios'!E:E)","v":0},null,0]
[null,null,912,"Cumbrera C°G° N°30 des. 30cm","ml",{"$f":"SUMIF('Análisis de Precios'!A:A,C166,'Análisis de Precios'!E:E)","v":0},null,0]
[null,null,913,"Babeta C°G° N°30 des. 25cm","ml",{"$f":"SUMIF('Análisis de Precios'!A:A,C167,'Análisis de Precios'!E:E)","v":7.4},{"$f":"930/$M$8","v":768.59504132231405},5687.6033057851246]
[null,null,914,"Cenefa C°G° N°30 des. 30cm","ml",{"$f":"SUMIF('Análisis de Precios'!A:A,C168,'Análisis de Precios'!E:E)","v":16.600000000000001},{"$f":"1900/$M$8","v":1570.2479338842975},26066.115702479339]
[null,null,915,"Canaleta C°G° N°25 des. 40cm","ml",{"$f":"SUMIF('Análisis de Precios'!A:A,C169,'Análisis de Precios'!E:E)","v":7.4},{"$f":"3430/$M$8","v":2834.7107438016528},20976.859504132233]
[null,null,916,"Soporte canaleta rectangular 15cm","un.",{"$f":"SUMIF('Análisis de Precios'!A:A,C170,'Análisis de Precios'!E:E)","v":10},{"$f":"600/$M$8","v":495.86776859504135},4958.6776859504134]
[null,null,917,"Embudo redondo Ø100mm","un.",{"$f":"SUMIF('Análisis de Precios'!A:A,C171,'Análisis de Precios'!E:E)","v":2},{"$f":"1200/$M$8","v":991.73553719008271},1983.4710743801654]
[10,"REVESTIMIENTOS",1001,"revestimiento Cerámico","m²",{"$f":"SUMIF('Análisis de Precios'!A:A,C172,'Análisis de Precios'!E:E)","v":0},null,0]
[null,null,1002,"Adhesivo para ceramica por 30 kls.","bls.",{"$f":"SUMIF('Análisis de Precios'!A:A,C173,'Análisis de Precios'!E:E)","v":9.5000000000000001E-2},{"$f":"3688/$M$8","v":3047.9338842975208},289.55371900826447]
[null,null,1003,"Cemento Blanco","Kg.",{"$f":"SUMIF('Análisis de Precios'!A:A,C174,'Análisis de Precios'!E:E)","v":0},{"$f":"10390.59/(25*$M$8)","v":343.49057851239672},0]
[null,null,1004,"Porcelanato 60x60 pulido","m²",{"$f":"SUMIF('Análisis de Precios'!A:A,C175,'Análisis de Precios'!E:E)","v":1},{"$f":"4000/$M$8","v":3305.7851239669421},3305.7851239669421]
[11,"INSTALACION SANITARIA",1101,"caño PVC 3,2 40 mm","mts.",{"$f":"SUMIF('Análisis de Precios'!A:A,C176,'Análisis de Precios'!E:E)","v":0},null,0]
[null,null,1102,"caño PVC 3,2 50 mm","mts.",{"$f":"SUMIF('Análisis de Precios'!A:A,C177,'Análisis de Precios'!E:E)","v":0},null,0]
[null,null,1103,"caño PVC 3,2 60 mm","mts.",{"$f":"SUMIF('Análisis de Precios'!A:A,C178,'Análisis de Precios'!E:E)","v":0},null,0]
[null,null,1104,"caño PVC 3,2 63 mm","mts.",{"$f":"SUMIF('Análisis de Precios'!A:A,C179,'Análisis de Precios'!E:E)","v":0},null,0]
[null,null,1105,"caño PVC 3,2 110 mm","mts.",{"$f":"SUMIF('Análisis de Precios'!A:A,C180,'Análisis de Precios'!E:E)","v":0},null,0]
[null,null,1106,"CAÑO PVC Ø 110 MM P/CLOACA C/ ARO","mts.",{"$f":"SUMIF('Análisis de Precios'!A:A,C181,'Análisis de Precios'!E:E)","v":0},null,0]
[null,null,1107,"caño PVC Ø 60 mm x 2,2","mts",{"$f":"SUMIF('Análisis de Precios'!A:A,C182,'Análisis de Precios'!E:E)","v":0},null,0]
[null,null,1108,"codos PVC 40 mm M-H","un.",{"$f":"SUMIF('Análisis de Precios'!A:A,C183,'Análisis de Precios'!E:E)","v":0},null,0]
[null,null,1109,"codos PVC 50 mm MH","un.",{"$f":"SUMIF('Análisis de Precios'!A:A,C184,'Análisis de Precios'!E:E)","v":0},null,0]
[null,null,1110,"Codo c/acometidas PVC 110 mm","un.",{"$f":"SUMIF('Análisis de Precios'!A:A,C185,'Análisis de Precios'!E:E)","v":0},null,0]
[null,null,1111,"codos PVC 63 mm MH","un.",{"$f":"SUMIF('Análisis de Precios'!A:A,C186,'Análisis de Precios'!E:E)","v":0},null,0]
[null,null,1112,"curvas PVC 40 mm a 45° MH","un.",{"$f":"SUMIF('Análisis de Precios'!A:A,C187,'Análisis de Precios'!E:E)","v":0},null,0]
[null,null,1113,"CURVA A 45° Ø 110 MM ","un.",{"$f":"SUMIF('Análisis de Precios'!A:A,C188,'Análisis de Precios'!E:E)","v":0},null,0]
[null,null,1114,"curva PVC 63 mm a 45° MH","un.",{"$f":"SUMIF('Análisis de Precios'!A:A,C189,'Análisis de Precios'!E:E)","v":0},null,0]
[null,null,1115,"sombrete p/ ventilacion Ø 63","un.",{"$f":"SUMIF('Análisis de Precios'!A:A,C190,'Análisis de Precios'!E:E)","v":0},null,0]
[null,null,1116,"Codo PVC 110 3,2 mm M-H","un.",{"$f":"SUMIF('Análisis de Precios'!A:A,C191,'Análisis de Precios'!E:E)","v":0},null,0]
[null,null,1117,"Pileta de patio 10x10 .","un.",{"$f":"SUMIF('Análisis de Precios'!A:A,C192,'Análisis de Precios'!E:E)","v":0},null,0,null,null,null,{"$f":"1265/25","v":50.6}]
[null,null,1118,"Receptaculo de ducha macho","un.",{"$f":"SUMIF('Análisis de Precios'!A:A,C193,'Análisis de Precios'!E:E)","v":0},null,0]
[null,null,1119,"Caño PPN 13 mm","mts.",{"$f":"SUMIF('Análisis de Precios'!A:A,C194,'Análisis de Precios'!E:E)","v":0},null,0]
[null,null,1120,"Caño PPN 19 mm","mts.",{"$f":"SUMIF('Análisis de Precios'!A:A,C195,'Análisis de Precios'!E:E)","v":0},null,0]
[null,null,1121,"CAÑO PPN 25 MM","mts.",{"$f":"SUMIF('Análisis de Precios'!A:A,C196,'Análisis de Precios'!E:E)","v":0},null,0]
[null,null,1123,"Codo PPN 13 mm","un.",{"$f":"SUMIF('Análisis de Precios'!A:A,C197,'Análisis de Precios'!E:E)","v":0},null,0]
[null,null,1124,"Codo PPN 19 mm","un.",{"$f":"SUMIF('Análisis de Precios'!A:A,C198,'Análisis de Precios'!E:E)","v":0},null,0]
[null,null,1125,"Codo PPN 19 mm  x 13mm","un.",{"$f":"SUMIF('Análisis de Precios'!A:A,C199,'Análisis de Precios'!E:E)","v":0},null,0]
[null,null,1126,"CUPLA PPN 13 mm","un.",{"$f":"SUMIF('Análisis de Precios'!A:A,C200,'Análisis de Precios'!E:E)","v":0},null,0]
[null,null,1127,"Cupla de PPN 19 mm","un.",{"$f":"SUMIF('Análisis de Precios'!A:A,C201,'Análisis de Precios'!E:E)","v":0},null,0]
[null,null,1128,"Tapon PPN 13mm","un.",{"$f":"SUMIF('Análisis de Precios'!A:A,C202,'Análisis de Precios'!E:E)","v":0},null,0]
[null,null,1129,"Tapon PPN 19mm","un.",{"$f":"SUMIF('Análisis de Precios'!A:A,C203,'Análisis de Precios'!E:E)","v":0},null,0]
[null,null,1130,"asfalcreep","rollo",{"$f":"SUMIF('Análisis de Precios'!A:A,C204,'Análisis de Precios'!E:E)","v":0},null,0]
[null,null,1131,"tee PPN 3/4  x  13  mm","un.",{"$f":"SUMIF('Análisis de Precios'!A:A,C205,'Análisis de Precios'!E:E)","v":0},null,0]
[null,null,1132,"TEE PPN 1/2\"","un.",{"$f":"SUMIF('Análisis de Precios'!A:A,C206,'Análisis de Precios'!E:E)","v":0},null,0]
[null,null,1133,"cañamo peinado","Kg.",{"$f":"SUMIF('Análisis de Precios'!A:A,C207,'Análisis de Precios'!E:E)","v":0},null,0]
[null,null,1134,"pintura asfaltica","lts.",{"$f":"SUMIF('Análisis de Precios'!A:A,C208,'Análisis de Precios'!E:E)","v":0},null,0,{"$f":"+SUM(H176,H177,H179,H180,H183,H184,H185,H186,H187,H188,H190,H191,H192,H193)","v":0}]
[null,null,1135,"adhesivo para PVC","lts.",{"$f":"SUMIF('Análisis de Precios'!A:A,C209,'Análisis de Precios'!E:E)","v":0},null,0]
[null,null,1136,"SELLAROSCA","Kg.",{"$f":"SUMIF('Análisis de Precios'!A:A,C210,'Análisis de Precios'!E:E)","v":0},null,0]
[null,null,1137,"tornillos parker 8 x 25 mm","un.",{"$f":"SUMIF('Análisis de Precios'!A:A,C211,'Análisis de Precios'!E:E)","v":0},null,0]
[null,null,1138,"TORNILLOS TIRAFONDO 10 MM P/ LAVATORIO","un.",{"$f":"SUMIF('Análisis de Precios'!A:A,C212,'Análisis de Precios'!E:E)","v":0},null,0]
[null,null,1139,"ARANDELA PESADA PARA LAVATORIO","un.",{"$f":"SUMIF('Análisis de Precios'!A:A,C213,'Análisis de Precios'!E:E)","v":0},null,0]
[null,null,1140,"PITONES 8 MM ANGULO","un.",{"$f":"SUMIF('Análisis de Precios'!A:A,C214,'Análisis de Precios'!E:E)","v":0},null,0]
[null,null,1141,"FLOTANTE BCE DE 1/2\" CON BOLLA DE TELGOPOR","un.",{"$f":"SUMIF('Análisis de Precios'!A:A,C215,'Análisis de Precios'!E:E)","v":0},null,0]
[null,null,1142,"TANQUE PVC TRICAPA ETERNIT  1100 lts.","un.",{"$f":"SUMIF('Análisis de Precios'!A:A,C216,'Análisis de Precios'!E:E)","v":0},null,0]
[null,null,1143,"VENTILACION DE POLIETILENO DE 1\"","un.",{"$f":"SUMIF('Análisis de Precios'!A:A,C217,'Análisis de Precios'!E:E)","v":0},null,0]
[null,null,1144,"VALVULA DE LIMPIEZA DE BCE 3/4\"","un.",{"$f":"SUMIF('Análisis de Precios'!A:A,C218,'Análisis de Precios'!E:E)","v":0},null,0]
[null,null,1145,"Llave de paso c/ campana  de  13 mm","un.",{"$f":"SUMIF('Análisis de Precios'!A:A,C219,'Análisis de Precios'!E:E)","v":0},null,0]
[null,null,1146,"Valvula  exclusa   19 mm","un.",{"$f":"SUMIF('Análisis de Precios'!A:A,C220,'Análisis de Precios'!E:E)","v":0},null,0]
[null,null,1147,"CONEXIÓN CRUZ PPN 1\"","un.",{"$f":"SUMIF('Análisis de Precios'!A:A,C221,'Análisis de Precios'!E:E)","v":0},null,0]
[null,null,1148,"UNION DOBLE PPN 3/4\"","un.",{"$f":"SUMIF('Análisis de Precios'!A:A,C222,'Análisis de Precios'!E:E)","v":0},null,0]
[null,null,1149,"LLAVE DE PASO BCE 3/4\"","un.",{"$f":"SUMIF('Análisis de Precios'!A:A,C223,'Análisis de Precios'!E:E)","v":0},null,0]
[null,null,1150,"BUJE REDUCCION 3/4\" A 1/2\"","un.",{"$f":"SUMIF('Análisis de Precios'!A:A,C224,'Análisis de Precios'!E:E)","v":0},null,0]
[null,null,1151,"toallero integral","un.",{"$f":"SUMIF('Análisis de Precios'!A:A,C225,'Análisis de Precios'!E:E)","v":0},null,0]
[null,null,1152,"jabonera con agarradera","un.",{"$f":"SUMIF('Análisis de Precios'!A:A,C226,'Análisis de Precios'!E:E)","v":0},null,0]
[null,null,1153,"portarrollo losa","un.",{"$f":"SUMIF('Análisis de Precios'!A:A,C227,'Análisis de Precios'!E:E)","v":0},null,0]
[null,null,1154,"jabonera chica losa","un.",{"$f":"SUMIF('Análisis de Precios'!A:A,C228,'Análisis de Precios'!E:E)","v":0},null,0]
[null,null,1155,"INODORO PEDESTAL","un.",{"$f":"SUMIF('Análisis de Precios'!A:A,C229,'Análisis de Precios'!E:E)","v":0},null,0]
[null,null,1156,"LAVATORIO DE COLGAR","un.",{"$f":"SUMIF('Análisis de Precios'!A:A,C230,'Análisis de Precios'!E:E)","v":0},null,0]
[null,null,1157,"FLOR DE DUCHA PLASTICA Y NIPLE","un.",{"$f":"SUMIF('Análisis de Precios'!A:A,C231,'Análisis de Precios'!E:E)","v":0},null,0]
[null,null,1158,"CANILLA PICO MOVIL P/ PARED 1/2\"","un.",{"$f":"SUMIF('Análisis de Precios'!A:A,C232,'Análisis de Precios'!E:E)","v":0},null,0]
[null,null,1159,"TARUGOS FISCHER S 8 MM","un.",{"$f":"SUMIF('Análisis de Precios'!A:A,C233,'Análisis de Precios'!E:E)","v":0},null,0]
[null,null,1160,"ASIENTO Y TAPA DE INODORO PVC","un.",{"$f":"SUMIF('Análisis de Precios'!A:A,C234,'Análisis de Precios'!E:E)","v":0},null,0]
[null,null,1161,"MOCHILA PVC DE codo 12 LTS","un.",{"$f":"SUMIF('Análisis de Precios'!A:A,C235,'Análisis de Precios'!E:E)","v":0},null,0]
[null,null,1162,"FLEXIBLE 30 CM 1/2\"","un.",{"$f":"SUMIF('Análisis de Precios'!A:A,C236,'Análisis de Precios'!E:E)","v":0},null,0]
[null,null,1163,"TORNILLOS TIRAFONDO 8 MM P/ INODORO","un.",{"$f":"SUMIF('Análisis de Precios'!A:A,C237,'Análisis de Precios'!E:E)","v":0},null,0]
[null,null,1164,"MASILLA P/ SANITARISTA","kg.",{"$f":"SUMIF('Análisis de Precios'!A:A,C238,'Análisis de Precios'!E:E)","v":0},null,0]
[null,null,1165,"CANILLA CROMADA DE 1/2\" P/ LAVATORIO","un.",{"$f":"SUMIF('Análisis de Precios'!A:A,C239,'Análisis de Precios'!E:E)","v":0},null,0]
[null,null,1166,"BACHA DE ACERO INOX 37,5 x 57 CM","un.",{"$f":"SUMIF('Análisis de Precios'!A:A,C240,'Análisis de Precios'!E:E)","v":0},null,0]
[null,null,1167,"SIFON PARA BACHA 50 MM","un.",{"$f":"SUMIF('Análisis de Precios'!A:A,C241,'Análisis de Precios'!E:E)","v":0},null,0]
[null,null,1168,"SOPAPA Ø 50 MM","un.",{"$f":"SUMIF('Análisis de Precios'!A:A,C242,'Análisis de Precios'!E:E)","v":0},null,0]
[null,null,1169,"SOPAPA PVC Ø 40 MM","un.",{"$f":"SUMIF('Análisis de Precios'!A:A,C243,'Análisis de Precios'!E:E)","v":0},null,0]
[null,null,1170,"CANILLA 1/2\" C/PICO ","un.",{"$f":"SUMIF('Análisis de Precios'!A:A,C244,'Análisis de Precios'!E:E)","v":0},null,0]
[null,null,1171,"CAÑO POLIETILENO K10 1/2\"","mts.",{"$f":"SUMIF('Análisis de Precios'!A:A,C245,'Análisis de Precios'!E:E)","v":0},null,0]
[null,null,1172,"ESPIGA RH- E POLIETILENO Ø 1/2\"","un.",{"$f":"SUMIF('Análisis de Precios'!A:A,C246,'Análisis de Precios'!E:E)","v":0},null,0]
[null,null,1173,"espiga erm 1/2 \"","un.",{"$f":"SUMIF('Análisis de Precios'!A:A,C247,'Análisis de Precios'!E:E)","v":0},null,0]
[null,null,1174,"cupla ppn de reduccion de 1\" a 3/4\"","un.",{"$f":"SUMIF('Análisis de Precios'!A:A,C248,'Análisis de Precios'!E:E)","v":0},null,0]
[null,null,1175,"marco y tapa ciega de bronce 20 cm x 20 cm","un.",{"$f":"SUMIF('Análisis de Precios'!A:A,C249,'Análisis de Precios'!E:E)","v":0},null,0]
[null,null,1176,"CUPLA PPN 1\"","un.",{"$f":"SUMIF('Análisis de Precios'!A:A,C250,'Análisis de Precios'!E:E)","v":0},null,0]
[null,null,1177,"TAPON MACHO PPN 1\"","un.",{"$f":"SUMIF('Análisis de Precios'!A:A,C251,'Análisis de Precios'!E:E)","v":0},null,0]
[null,null,1178,"TAPON HEMBRA PPN 1\"","un.",{"$f":"SUMIF('Análisis de Precios'!A:A,C252,'Análisis de Precios'!E:E)","v":0},null,0]
[null,null,1179,"Abrazadera PVC c/ inserto metalico para 1/2\" Ø 110 MM","un.",{"$f":"SUMIF('Análisis de Precios'!A:A,C253,'Análisis de Precios'!E:E)","v":0},null,0]
[null,null,1180,"Abrazadera PVC c/ inserto metalico para 1/2\" Ø 75 MM","un.",{"$f":"SUMIF('Análisis de Precios'!A:A,C254,'Análisis de Precios'!E:E)","v":0},null,0]
[null,null,1181,"ferula de bronce 1/2\"","un.",{"$f":"SUMIF('Análisis de Precios'!A:A,C255,'Análisis de Precios'!E:E)","v":0},null,0]
[null,null,1182,"abrazadera metalica 1/2\"","un.",{"$f":"SUMIF('Análisis de Precios'!A:A,C256,'Análisis de Precios'!E:E)","v":0},null,0]
[null,null,1183,"medidor clase c para agua","un.",{"$f":"SUMIF('Análisis de Precios'!A:A,C257,'Análisis de Precios'!E:E)","v":0},null,0]
[null,null,1184,"caja pvc para medidor de agua tipo celo","un.",{"$f":"SUMIF('Análisis de Precios'!A:A,C258,'Análisis de Precios'!E:E)","v":0},null,0]
[null,null,1185,"Valvula esferica c/epita 1\"","un.",{"$f":"SUMIF('Análisis de Precios'!A:A,C259,'Análisis de Precios'!E:E)","v":0},null,0]
[null,null,1186,"epita de bronce 1\"","un.",{"$f":"SUMIF('Análisis de Precios'!A:A,C260,'Análisis de Precios'!E:E)","v":0},null,0]
[null,null,1187,"caño PVC Ø 160 mm ( 1/3 de caña ) x 60 cm","un.",{"$f":"SUMIF('Análisis de Precios'!A:A,C261,'Análisis de Precios'!E:E)","v":0},null,0]
[null,null,1188,"ramal Y 110 -110 mm pvc","un.",{"$f":"SUMIF('Análisis de Precios'!A:A,C262,'Análisis de Precios'!E:E)","v":0},null,0]
[null,null,1189,"Aro p/bacha rectangular","un.",{"$f":"SUMIF('Análisis de Precios'!A:A,C263,'Análisis de Precios'!E:E)","v":0},null,0]
[null,null,1190,"Percha simple losa","un.",{"$f":"SUMIF('Análisis de Precios'!A:A,C264,'Análisis de Precios'!E:E)","v":0},null,0]
[null,null,1191,"TEE PPN HHH 1\"","un.",{"$f":"SUMIF('Análisis de Precios'!A:A,C265,'Análisis de Precios'!E:E)","v":0},null,0]
[null,null,1192,"BUJE REDUCCION PPN  1\" A 3/4\"","un.",{"$f":"SUMIF('Análisis de Precios'!A:A,C266,'Análisis de Precios'!E:E)","v":0},null,0]
[null,null,1193,"Sellador h 3","un.",{"$f":"SUMIF('Análisis de Precios'!A:A,C267,'Análisis de Precios'!E:E)","v":0},null,0]
[null,null,1194,"Teflon 3/4 x 20m","un.",{"$f":"SUMIF('Análisis de Precios'!A:A,C268,'Análisis de Precios'!E:E)","v":0},null,0]
[null,null,1195,"Rejilla c/ marco F?F? 20 X 20","un.",{"$f":"SUMIF('Análisis de Precios'!A:A,C269,'Análisis de Precios'!E:E)","v":0},null,0]
[null,null,1196,"Caño PVC 2.2 100","un.",{"$f":"SUMIF('Análisis de Precios'!A:A,C270,'Análisis de Precios'!E:E)","v":0},null,0]
[null,null,1197,"brida simple 1\"","un.",{"$f":"SUMIF('Análisis de Precios'!A:A,C271,'Análisis de Precios'!E:E)","v":0},null,0]
[null,null,1198,"ramal Y 110 -63 mm pvc","un.",{"$f":"SUMIF('Análisis de Precios'!A:A,C272,'Análisis de Precios'!E:E)","v":0},null,0]
[null,null,1199,"ramal Y 110 -110 mm pvc","un.",{"$f":"SUMIF('Análisis de Precios'!A:A,C273,'Análisis de Precios'!E:E)","v":0},null,0]
[12,"PINTURAS",1201,"antioxido rojo al cromato","lts",{"$f":"SUMIF('Análisis de Precios'!A:A,C274,'Análisis de Precios'!E:E)","v":0},null,0]
[null,null,1202,"aguarras mineral","lts",{"$f":"SUMIF('Análisis de Precios'!A:A,C275,'Análisis de Precios'!E:E)","v":0},null,0]
[null,null,1203,"Tinheer","lts",{"$f":"SUMIF('Análisis de Precios'!A:A,C276,'Análisis de Precios'!E:E)","v":1.8500000000000003},{"$f":"740.88/$M$8","v":612.29752066115702},1132.7504132231406]
[null,null,1204,"fondo sintetico para madera","lts",{"$f":"SUMIF('Análisis de Precios'!A:A,C277,'Análisis de Precios'!E:E)","v":0},null,0]
[null,null,1205,"Sellador fijador","lts",{"$f":"SUMIF('Análisis de Precios'!A:A,C278,'Análisis de Precios'!E:E)","v":109.79200000000002},{"$f":"17545/(20*$M$8)","v":725},79599.200000000012]
[null,null,1206,"sintetico marfil champang","lts",{"$f":"SUMIF('Análisis de Precios'!A:A,C279,'Análisis de Precios'!E:E)","v":0},null,0]
[null,null,1207,"sintetico verde ilusion","lts",{"$f":"SUMIF('Análisis de Precios'!A:A,C280,'Análisis de Precios'!E:E)","v":0},null,0]
[null,null,1208,"sintetico cedro","lts",{"$f":"SUMIF('Análisis de Precios'!A:A,C281,'Análisis de Precios'!E:E)","v":0},null,0]
[null,null,1209,"látex exterior interior blanco","lts",{"$f":"SUMIF('Análisis de Precios'!A:A,C282,'Análisis de Precios'!E:E)","v":0},null,0]
[null,null,1210,"sintetico blanco","lts",{"$f":"SUMIF('Análisis de Precios'!A:A,C283,'Análisis de Precios'!E:E)","v":0},null,0]
[null,null,1211,"entonador x 120 cc n° 10","lts",{"$f":"SUMIF('Análisis de Precios'!A:A,C284,'Análisis de Precios'!E:E)","v":0},null,0]
[null,null,1212,"enduido plastico p/ madera","lts",{"$f":"SUMIF('Análisis de Precios'!A:A,C285,'Análisis de Precios'!E:E)","v":0},null,0]
[null,null,1213,"sintetico gris oscuro","lts",{"$f":"SUMIF('Análisis de Precios'!A:A,C286,'Análisis de Precios'!E:E)","v":0},null,0]
[null,null,1214,"barniz","lts",{"$f":"SUMIF('Análisis de Precios'!A:A,C287,'Análisis de Precios'!E:E)","v":0},null,0]
[null,null,1215,"sintetico aluminio","lts",{"$f":"SUMIF('Análisis de Precios'!A:A,C288,'Análisis de Precios'!E:E)","v":0},null,0]
[null,null,1216,"Látex exterior blanco","lts",{"$f":"SUMIF('Análisis de Precios'!A:A,C289,'Análisis de Precios'!E:E)","v":230.56319999999999},{"$f":"25946/(20*$M$8)","v":1072.1487603305786},247198.04905785125]
[null,null,1217,"latex exterior Gris oscuro","lts",{"$f":"SUMIF('Análisis de Precios'!A:A,C290,'Análisis de Precios'!E:E)","v":0},null,0]
[null,null,1218,"entonador 120 cc universal n° 1","lts",{"$f":"SUMIF('Análisis de Precios'!A:A,C291,'Análisis de Precios'!E:E)","v":0},null,0]
[null,null,1219,"latex exterior verde cemento","lts",{"$f":"SUMIF('Análisis de Precios'!A:A,C292,'Análisis de Precios'!E:E)","v":0},null,0]
[null,null,1220,"látex exterior marron","lts",{"$f":"SUMIF('Análisis de Precios'!A:A,C293,'Análisis de Precios'!E:E)","v":0},null,0]
[null,null,1221,"entonador x 120 cc n° 6","lts",{"$f":"SUMIF('Análisis de Precios'!A:A,C294,'Análisis de Precios'!E:E)","v":0},null,0]
[null,null,1222,"rodillo n° 5","un.",{"$f":"SUMIF('Análisis de Precios'!A:A,C295,'Análisis de Precios'!E:E)","v":0},null,0]
[null,null,1223,"espatula","un.",{"$f":"SUMIF('Análisis de Precios'!A:A,C296,'Análisis de Precios'!E:E)","v":0},null,0]
[null,null,1224,"pincel n° 15","un.",{"$f":"SUMIF('Análisis de Precios'!A:A,C297,'Análisis de Precios'!E:E)","v":0},null,0]
[null,null,1225,"rodillo ancho","un.",{"$f":"SUMIF('Análisis de Precios'!A:A,C298,'Análisis de Precios'!E:E)","v":0},null,0]
[null,null,1226,"Brocha","un.",{"$f":"SUMIF('Análisis de Precios'!A:A,C299,'Análisis de Precios'!E:E)","v":0},null,0]
[null,null,1228,"Lija al agua  N°80","un.",{"$f":"SUMIF('Análisis de Precios'!A:A,C300,'Análisis de Precios'!E:E)","v":0},null,0]
[null,null,1229,"Viruta de acero fina","un.",{"$f":"SUMIF('Análisis de Precios'!A:A,C301,'Análisis de Precios'!E:E)","v":0},null,0]
[null,null,1230,"Rodillo lana n° 22","un.",{"$f":"SUMIF('Análisis de Precios'!A:A,C302,'Análisis de Precios'!E:E)","v":0},null,0]
[null,null,1231,"Convertidor de óxido","lt.",{"$f":"SUMIF('Análisis de Precios'!A:A,C303,'Análisis de Precios'!E:E)","v":0.92500000000000016},{"$f":"3742/$M$8","v":3092.5619834710747},2860.6198347107447]
[null,null,1232,"Esmalte sintético 1lt","lt",{"$f":"SUMIF('Análisis de Precios'!A:A,C304,'Análisis de Precios'!E:E)","v":0.92500000000000016},{"$f":"3580/$M$8","v":2958.6776859504134},2736.776859504133]
[null,null,1233]
[13,"VIDRIOS",1301,"vidrio traslucido tipo fantasia 4 mm","m²",{"$f":"SUMIF('Análisis de Precios'!B:B,C306,'Análisis de Precios'!E:E)","v":0},null,{"$f":"+G306*F306","v":0}]
[null,null,1302,"vidrio transparente 3 mm","m²",{"$f":"SUMIF('Análisis de Precios'!B:B,C307,'Análisis de Precios'!E:E)","v":0},null,0]
[14,"HERRAMIENTAS",1401,"disco de corte diamantado    Ø14\"","un.",{"$f":"SUMIF('Análisis de Precios'!B:B,C308,'Análisis de Precios'!E:E)","v":0},null,0]
[null,null,1402,"grasa de litio","Kg.",{"$f":"SUMIF('Análisis de Precios'!B:B,C309,'Análisis de Precios'!E:E)","v":0},null,0]
[null,null,1403,"papel de bolsa","m²",{"$f":"SUMIF('Análisis de Precios'!B:B,C310,'Análisis de Precios'!E:E)","v":0},null,0]
[null,null,1404,"mecha de acero Ø 3,5 MM","un.",{"$f":"SUMIF('Análisis de Precios'!B:B,C311,'Análisis de Precios'!E:E)","v":0},null,0]
[null,null,1405,"MECHA ACERO 6 MM","un.",{"$f":"SUMIF('Análisis de Precios'!B:B,C312,'Análisis de Precios'!E:E)","v":0},null,0]
[null,null,1406,"Valde de albañil metalico","un.",{"$f":"SUMIF('Análisis de Precios'!B:B,C313,'Análisis de Precios'!E:E)","v":0},null,0]
[null,null,1407,"Cabo para palas","un.",{"$f":"SUMIF('Análisis de Precios'!B:B,C314,'Análisis de Precios'!E:E)","v":0},null,0]
[null,null,1408,"Lapiz de carpintero","un.",{"$f":"SUMIF('Análisis de Precios'!B:B,C315,'Análisis de Precios'!E:E)","v":0},null,0]
[null,null,1409,"Hoja sierra AC 32d. Bimetal","un.",{"$f":"SUMIF('Análisis de Precios'!B:B,C316,'Análisis de Precios'!E:E)","v":0},null,0]
[null,null,1410,"disco de corte Carb.    9\"","un.",{"$f":"SUMIF('Análisis de Precios'!B:B,C317,'Análisis de Precios'!E:E)","v":0},null,0]
[null,null,1411,"Rueda p/ carretilla","un.",{"$f":"SUMIF('Análisis de Precios'!B:B,C318,'Análisis de Precios'!E:E)","v":0},null,0]
[null,null,1412,"Fratacho de madera","un.",{"$f":"SUMIF('Análisis de Precios'!B:B,C319,'Análisis de Precios'!E:E)","v":0},null,0]
[null,null,1413,"Fratacho c/ paño","un.",{"$f":"SUMIF('Análisis de Precios'!B:B,C320,'Análisis de Precios'!E:E)","v":0},null,0]
[null,null,1414,"Cinta metrica x 3 mts","un.",{"$f":"SUMIF('Análisis de Precios'!B:B,C321,'Análisis de Precios'!E:E)","v":0},null,0]
[null,null,1415,"Guante de goma látex n° 10 corto","un.",{"$f":"SUMIF('Análisis de Precios'!B:B,C322,'Análisis de Precios'!E:E)","v":0},null,0]
[null,null,1416,"Faja lumbar","un.",{"$f":"SUMIF('Análisis de Precios'!B:B,C323,'Análisis de Precios'!E:E)","v":0},null,0]
[null,null,1417,"Poxiran","un.",{"$f":"SUMIF('Análisis de Precios'!B:B,C324,'Análisis de Precios'!E:E)","v":0},null,0]
[null,null,1418,"Cable tipo taller 2x 1,5mm2","un.",{"$f":"SUMIF('Análisis de Precios'!B:B,C325,'Análisis de Precios'!E:E)","v":0},null,0]
[null,null,1419,"Chapa lisa negra N° 24","un.",{"$f":"SUMIF('Análisis de Precios'!B:B,C326,'Análisis de Precios'!E:E)","v":0},null,0]
[null,null,1420,"Chapa lisa negra N° 16","un.",{"$f":"SUMIF('Análisis de Precios'!B:B,C327,'Análisis de Precios'!E:E)","v":0},null,0]
[15,"INFRAESTRUCTURA",1501,"Placas de yeso 12 mm 1.20 x 2.40","un.",{"$f":"SUMIF('Análisis de Precios'!B:B,C328,'Análisis de Precios'!E:E)","v":0},null,0]
[null,null,1502,"Tornillos aguja T1","un.",{"$f":"SUMIF('Análisis de Precios'!B:B,C329,'Análisis de Precios'!E:E)","v":0},null,0]
[null,null,1503,"soleras 70 mm","un.",{"$f":"SUMIF('Análisis de Precios'!B:B,C330,'Análisis de Precios'!E:E)","v":0},null,0]
[null,null,1504,"montantes 70 mm","un.",{"$f":"SUMIF('Análisis de Precios'!B:B,C331,'Análisis de Precios'!E:E)","v":0},null,0]
[null,null,1505,"cinta tramada x 150 mts","un.",{"$f":"SUMIF('Análisis de Precios'!B:B,C332,'Análisis de Precios'!E:E)","v":0},null,0]
[null,null,1506,"molduras de espuma de poliuretano","m",{"$f":"SUMIF('Análisis de Precios'!B:B,C333,'Análisis de Precios'!E:E)","v":0},null,0]
[null,null,1507,"terciado 3 mm 1.6 x 2.1","un.",{"$f":"SUMIF('Análisis de Precios'!B:B,C334,'Análisis de Precios'!E:E)","v":0},null,0]
[null,null,1508,"fenolico 18 mm 1.6 x 2.1","un.",{"$f":"SUMIF('Análisis de Precios'!B:B,C335,'Análisis de Precios'!E:E)","v":0},null,0]
[null,null,1509,"Tablillas de PVC","m2",{"$f":"SUMIF('Análisis de Precios'!B:B,C336,'Análisis de Precios'!E:E)","v":0},null,0]
[null,null,1510,"molduras de pvc","m",{"$f":"SUMIF('Análisis de Precios'!B:B,C337,'Análisis de Precios'!E:E)","v":0},null,0]
[]
[null,null,null,null," "]
[]
[]
[]
[]
[]
[]
[]
[]
[]
[]
[null,null,null,"Total de materiales listados",{"$f":"COUNTIF(F:F,\">0\")","v":32},null,"MATERIALES",{"$f":"SUM(H15:H304)","v":10046754.565368628}]
[null,null,null,null,null,null,"MANO DE OBRA",{"$f":"H11+H12","v":10356338.5776}]